Workbook

Sheet Index
A1: INDEX
A2: =Residuals!A1 -> Residuals and Averages
A3: ='T1'!A1 -> Table 1 - Summary of Demand Tariffs
A4: ='T2'!A1 -> Table 2 - Demand Tariffs
A5: ='T3 & Fig 4'!A1 -> Table 3 - Change in HH Demand Tariffs
A6: ='T4'!A1 -> Table 4 - Embedded Export Tariff
A7: ='T5 & Fig 7'!A1 -> Table 5 - NHH Demand Tariff Changes
A8: ='T6'!A1 -> Table 6 - Changes to Average Tariffs
A9: ='T7'!A1 -> Table 7 - Generation Wider Tariffs
A10: ='T8 & Fig 4'!A1 -> Table 8 - Generation Tariff Changes
A11: ='T9'!A1 -> Table 9 - Local Substation Tariffs
A12: ='T10'!A1 -> Table 10 - Onshore Local Circuit Tariffs
A13: ='T11'!A1 -> Table 11 - CMP203: Circuits subject to one-off charges
A14: ='T12'!A1 -> Table 12 - Offshore Local Tariffs
A15: ='T13'!A1 -> Table 13 - Contracted and Modelled TEC
A16: ='T14'!A1 -> Table 14 - Interconnectors
A17: ='T15'!A1 -> Table 15 - Allowed Revenues
A18: ='T16'!A1 -> Table 16 - Generation and Demand Revenue Proportions
A19: ='T17'!A1 -> Table 17 - Charging Bases
A20: ='T18'!A1 -> Table 18 - Residual Calculation
A21: Table 19 - Small Generator Discount
A22: Table 20 - Summary of Ongoing CUSC Mods
A23: ='T21'!A1 -> Table 21 - Demand HH Locational Tariffs
A24: ='T22'!A1 -> Table 22 - Breakdown of the Embedded Export Tariff
A25: ='T23'!A1 -> Table 23 - Demand Profiles
A26: ='T24'!A1 -> Table 24 - Generic Annual Load Factors
A27: ='T25'!A1 -> Table 25 - Generation Contracted TEC Changes
A28: ='T26-29'!A1 -> Table 26-29 - Revenue Breakdown
A29: ='T30'!A1 -> Table 30 - Offshore Revenues
A30: ='T31'!A1 -> Table 31 - Specific Annual Load Factors

Sheet Residuals
A1: Residuals and Averages | D1: Return to Index
A3: Residual | B3: ='T6'!B3 -> 2020/21 July | C3: ='T6'!C3 -> 2020/21 Draft | D3: ='T6'!D3 -> Change since last forecast
A4: Generation | B4: ='T6'!B4 -> -4.533500131 | C4: ='T6'!C4 -> -4.776900897 | D4: ='T6'!D4 -> -0.243400765
A5: Demand | B5: ='T1'!C5 -> 52.17858806 | C5: ='T1'!D5 -> 51.881473 | D5: ='T1'!E5 -> -0.29711506
A7: Average Tariff | B7: =B3 -> 2020/21 July | C7: =C3 -> 2020/21 Draft | D7: =D3 -> Change since last forecast
A8: Generation (£/kW) | B8: ='T6'!B5 -> 5.221000957 | C8: ='T6'!C5 -> 4.92853717 | D8: ='T6'!D5 -> -0.2924637871 | E8: N.B. These generation average tariffs include local tariffs
A9: HH Demand (£/kW) | B9: ='T1'!C4 -> 51.11394858 | C9: ='T1'!D4 -> 50.413547 | D9: =C9-B9 -> -0.7004015831
A10: NHH Demand (p/kWh) | B10: ='T1'!C13 -> 6.524629831 | C10: ='T1'!D13 -> 6.425854 | D10: -0.09877583082
A11: Embedded Export (£/kW) | B11: ='T1'!C7 -> 2.524959505 | C11: ='T1'!D7 -> 2.372907 | D11: -0.152052505

Sheet T1
A1: Table 1 - Summary of Demand Tariffs | E1: Return to Index
B3: HH Tariffs | C3: ='T6'!B3 -> 2020/21 July | D3: ='T6'!C3 -> 2020/21 Draft | E3: Change
B4: Average Tariff (£/kW) | C4: 51.11394858 | D4: 50.413547 | E4: -0.7004015831
B5: Residual (£/kW) | C5: 52.17858806 | D5: 51.881473 | E5: -0.29711506
B6: EET | C6: =C3 -> 2020/21 July | D6: =D3 -> 2020/21 Draft | E6: Change
B7: Average Tariff (£/kW) | C7: 2.524959505 | D7: 2.372907 | E7: -0.152052505
B8: Phased residual (£/kW) | C8: 0 | D8: 0 | E8: 0
B9: AGIC (£/kW) | C9: 3.426888 | D9: 3.416495 | E9: -0.010393
B10: Embedded Export Volume (GW) | C10: 7.091123507 | D10: 7.23 | E10: 0.1388764934
B11: Total Credit (£m) | C11: 17.9047997 | D11: 17.15611967 | E11: -0.7486800276
B12: NHH Tariffs | C12: =C6 -> 2020/21 July | D12: =D6 -> 2020/21 Draft | E12: Change
B13: Average (p/kWh) | C13: 6.524629831 | D13: 6.425854 | E13: -0.09877583082

Sheet T2
A1: Table 2 - Demand Tariffs | E1: Return to Index
A3: Zone | B3: Zone Name | C3: HH Demand Tariff (£/kW) | D3: NHH Demand Tariff (p/kWh) | E3: Embedded Export Tariff (£/kW)
A4: 1 | B4: Northern Scotland | C4: 22.039463 | D4: 2.958074 | E4: 0
A5: 2 | B5: Southern Scotland | C5: 29.676415 | D5: 3.806319 | E5: 0
A6: 3 | B6: Northern | C6: 40.943296 | D6: 5.14941 | E6: 0
A7: 4 | B7: North West | C7: 47.599027 | D7: 6.117466 | E7: 0
A8: 5 | B8: Yorkshire | C8: 48.759563 | D8: 6.080959 | E8: 0
A9: 6 | B9: N Wales & Mersey | C9: 49.83033 | D9: 6.234944 | E9: 0.587871
A10: 7 | B10: East Midlands | C10: 52.314445 | D10: 6.711382 | E10: 3.071986
A11: 8 | B11: Midlands | C11: 53.57554 | D11: 6.959651 | E11: 4.333081
A12: 9 | B12: Eastern | C12: 54.415931 | D12: 7.389274 | E12: 5.173472
A13: 10 | B13: South Wales | C13: 51.539954 | D13: 6.065145 | E13: 2.297495
A14: 11 | B14: South East | C14: 57.430714 | D14: 7.895471 | E14: 8.188255
A15: 12 | B15: London | C15: 60.197138 | D15: 6.472525 | E15: 10.954679
A16: 13 | B16: Southern | C16: 58.701866 | D16: 7.598027 | E16: 9.459407
A17: 14 | B17: South Western | C17: 57.949506 | D17: 7.979705 | E17: 8.707047
A19: Residual charge for demand: | C19: 51.881473
A20: Tariffs include small gen tariff of: | C20: 0.777481 | D20: 0.099887

Sheet T3 & Fig 4
A1: Table 3 - Change in HH Demand Tariffs | F1: Return to Index
A3: Zone | B3: Zone Name | C3: =CONCATENATE('T6'!B3, " (£/kW)") -> 2020/21 July (£/kW) | D3: =CONCATENATE('T6'!C3, " (£/kW)") -> 2020/21 Draft (£/kW) | E3: Change (£/kW) | F3: Change in Residual (£/kW)
A4: 1 | B4: Northern Scotland | C4: 24.098098 | D4: 22.039463 | E4: =D4-C4 -> -2.058635 | F4: -0.6521335464
A5: 2 | B5: Southern Scotland | C5: 32.442288 | D5: 29.676415 | E5: =D5-C5 -> -2.765873 | F5: -0.6521335464
A6: 3 | B6: Northern | C6: 42.615678 | D6: 40.943296 | E6: -1.672382 | F6: -0.6521335464
A7: 4 | B7: North West | C7: 49.649333 | D7: 47.599027 | E7: -2.050306 | F7: -0.6521335464
A8: 5 | B8: Yorkshire | C8: 49.885147 | D8: 48.759563 | E8: -1.125584 | F8: -0.6521335464
A9: 6 | B9: N Wales & Mersey | C9: 51.270718 | D9: 49.83033 | E9: -1.440388 | F9: -0.6521335464
A10: 7 | B10: East Midlands | C10: 53.418265 | D10: 52.314445 | E10: -1.10382 | F10: -0.6521335464
A11: 8 | B11: Midlands | C11: 54.712695 | D11: 53.57554 | E11: -1.137155 | F11: -0.6521335464
A12: 9 | B12: Eastern | C12: 55.300674 | D12: 54.415931 | E12: -0.884743 | F12: -0.6521335464
A13: 10 | B13: South Wales | C13: 50.77387 | D13: 51.539954 | E13: 0.766084 | F13: -0.6521335464
A14: 11 | B14: South East | C14: 57.672224 | D14: 57.430714 | E14: -0.24151 | F14: -0.6521335464
A15: 12 | B15: London | C15: 61.12812 | D15: 60.197138 | E15: -0.930982 | F15: -0.6521335464
A16: 13 | B16: Southern | C16: 59.071027 | D16: 58.701866 | E16: -0.369161 | F16: -0.6521335464
A17: 14 | B17: South Western | C17: 57.239363 | D17: 57.949506 | E17: 0.710143 | F17: -0.6521335464
A20: Zone | B20: Peak (£/kW) | C20: Year Round (£/kW) | D20: Residual £/kW | E20: Small Gen Discount (£/kW) | F20: 2020/21 Draft (£/kW)
A21: 1 | B21: -2.181691198 | C21: -28.43779971 | D21: 51.88147307 | E21: 0.777481 | F21: =ROUND(SUM(B21+C21+D21+E21),6) -> 22.039463
A22: 2 | B22: -2.146788292 | C22: -20.83575035 | D22: 51.88147307 | E22: 0.777481 | F22: =ROUND(SUM(B22+C22+D22+E22),6) -> 29.676415
A23: 3 | B23: -3.619288431 | C23: -8.096369783 | D23: 51.88147307 | E23: 0.777481 | F23: 40.943296
A24: 4 | B24: -1.690502019 | C24: -3.369425282 | D24: 51.88147307 | E24: 0.777481 | F24: 47.599027
A25: 5 | B25: -2.525793593 | C25: -1.373597257 | D25: 51.88147307 | E25: 0.777481 | F25: 48.759563
A26: 6 | B26: -1.841013772 | C26: -0.9876105149 | D26: 51.88147307 | E26: 0.777481 | F26: 49.83033
A27: 7 | B27: -2.244514303 | C27: 1.90000515 | D27: 51.88147307 | E27: 0.777481 | F27: 52.314445
A28: 8 | B28: -1.927184573 | C28: 2.843770687 | D28: 51.88147307 | E28: 0.777481 | F28: 53.57554
A29: 9 | B29: 1.390004909 | C29: 0.3669721908 | D29: 51.88147307 | E29: 0.777481 | F29: 54.415931
A30: 10 | B30: -6.027019452 | C30: 4.908019542 | D30: 51.88147307 | E30: 0.777481 | F30: 51.539954
A31: 11 | B31: 3.908384393 | C31: 0.8633757745 | D31: 51.88147307 | E31: 0.777481 | F31: 57.430714
A32: 12 | B32: 5.77880145 | C32: 1.759382146 | D32: 51.88147307 | E32: 0.777481 | F32: 60.197138
A33: 13 | B33: 1.975370475 | C33: 4.067541269 | D33: 51.88147307 | E33: 0.777481 | F33: 58.701866
A34: 14 | B34: -0.4662805547 | C34: 5.756832194 | D34: 51.88147307 | E34: 0.777481 | F34: 57.949506

Sheet T4
A1: Table 4 - Embedded Export Tariff | E1: Return to Index
A4: Zone | B4: Zone Name | C4: ='T3 & Fig 4'!C3 -> 2020/21 July (£/kW) | D4: ='T3 & Fig 4'!D3 -> 2020/21 Draft (£/kW) | E4: Change (£/kW)
A5: 1 | B5: Northern Scotland | C5: 0 | D5: 0 | E5: =D5-C5 -> 0
A6: 2 | B6: Southern Scotland | C6: 0 | D6: 0 | E6: =D6-C6 -> 0
A7: 3 | B7: Northern | C7: 0 | D7: 0 | E7: 0
A8: 4 | B8: North West | C8: 0 | D8: 0 | E8: 0
A9: 5 | B9: Yorkshire | C9: 0.03996 | D9: 0 | E9: -0.03996
A10: 6 | B10: N Wales & Mersey | C10: 1.425532 | D10: 0.587871 | E10: -0.837661
A11: 7 | B11: East Midlands | C11: 3.573079 | D11: 3.071986 | E11: -0.501093
A12: 8 | B12: Midlands | C12: 4.867508 | D12: 4.333081 | E12: -0.534427
A13: 9 | B13: Eastern | C13: 5.455488 | D13: 5.173472 | E13: -0.282016
A14: 10 | B14: South Wales | C14: 0.928684 | D14: 2.297495 | E14: 1.368811
A15: 11 | B15: South East | C15: 7.827037 | D15: 8.188255 | E15: 0.361218
A16: 12 | B16: London | C16: 11.282933 | D16: 10.954679 | E16: -0.328254
A17: 13 | B17: Southern | C17: 9.22584 | D17: 9.459407 | E17: 0.233567
A18: 14 | B18: South Western | C18: 7.394177 | D18: 8.707047 | E18: 1.31287
A20: Zone | B20: EET Locational £/kW | C20: AGIC £/kW | D20: 2020/21 Phased Residual £/kW | E20: Final Tariff £/kW | F20: EET Revenue £m
A21: 1 | B21: -30.61949091 | C21: 3.416495 | D21: 0 | E21: 0 | F21: 0
A22: 2 | B22: -22.98253864 | C22: 3.416495 | D22: 0 | E22: 0 | F22: 0
A23: 3 | B23: -11.71565821 | C23: 3.416495 | D23: 0 | E23: 0 | F23: 0
A24: 4 | B24: -5.059927301 | C24: 3.416495 | D24: 0 | E24: 0 | F24: 0
A25: 5 | B25: -3.899390849 | C25: 3.416495 | D25: 0 | E25: 0 | F25: 0
A26: 6 | B26: -2.828624287 | C26: 3.416495 | D26: 0 | E26: 0.587871 | F26: 0.3409650136
A27: 7 | B27: -0.3445091533 | C27: 3.416495 | D27: 0 | E27: 3.071986 | F27: 1.689592216
A28: 8 | B28: 0.9165861141 | C28: 3.416495 | D28: 0 | E28: 4.333081 | F28: 1.039939467
A29: 9 | B29: 1.756977099 | C29: 3.416495 | D29: 0 | E29: 5.173472 | F29: 3.155817981
A30: 10 | B30: -1.11899991 | C30: 3.416495 | D30: 0 | E30: 2.297495 | F30: 0.8730481342
A31: 11 | B31: 4.771760168 | C31: 3.416495 | D31: 0 | E31: 8.188255 | F31: 2.702124205
A32: 12 | B32: 7.538183597 | C32: 3.416495 | D32: 0 | E32: 10.954679 | F32: 1.314561432
A33: 13 | B33: 6.042911745 | C33: 3.416495 | D33: 0 | E33: 9.459407 | F33: 3.68916863
A34: 14 | B34: 5.290551639 | C34: 3.416495 | D34: 0 | E34: 8.707047 | F34: 2.350902592

Sheet T5 & Fig 7
A1: Table 5 - NHH Demand Tariff Changes | D1: Return to Index
A3: Zone | B3: Zone Name | C3: =CONCATENATE('T6'!B3," (p/kWh)") -> 2020/21 July (p/kWh) | D3: =CONCATENATE('T6'!C3," (p/kWh)") -> 2020/21 Draft (p/kWh) | E3: Change (p/kWh)
A4: 1 | B4: Northern Scotland | C4: 3.256229 | D4: 2.958074 | E4: =D4-C4 -> -0.298155
A5: 2 | B5: Southern Scotland | C5: 4.163924 | D5: 3.806319 | E5: =D5-C5 -> -0.357605
A6: 3 | B6: Northern | C6: 5.306694 | D6: 5.14941 | E6: -0.157284
A7: 4 | B7: North West | C7: 6.374698 | D7: 6.117466 | E7: -0.257232
A8: 5 | B8: Yorkshire | C8: 6.170694 | D8: 6.080959 | E8: -0.089735
A9: 6 | B9: N Wales & Mersey | C9: 6.400488 | D9: 6.234944 | E9: -0.165544
A10: 7 | B10: East Midlands | C10: 6.828395 | D10: 6.711382 | E10: -0.117013
A11: 8 | B11: Midlands | C11: 7.105347 | D11: 6.959651 | E11: -0.145696
A12: 9 | B12: Eastern | C12: 7.5536 | D12: 7.389274 | E12: -0.164326
A13: 10 | B13: South Wales | C13: 5.915328 | D13: 6.065145 | E13: 0.149817
A14: 11 | B14: South East | C14: 8.004151 | D14: 7.895471 | E14: -0.10868
A15: 12 | B15: London | C15: 6.358193 | D15: 6.472525 | E15: 0.114332
A16: 13 | B16: Southern | C16: 7.633628 | D16: 7.598027 | E16: -0.035601
A17: 14 | B17: South Western | C17: 7.968421 | D17: 7.979705 | E17: 0.011284

Sheet T6
A1: Table 6 - Changes to Average Tariffs | F1: Return to Index
A3: Generation Tariffs (£/kW) | B3: 2020/21 July | C3: 2020/21 Draft | D3: Change since last forecast
A4: Residual | B4: -4.533500131 | C4: -4.776900897 | D4: =C4-B4 -> -0.243400765
A5: Average Generation Tariff | B5: 5.221000957 | C5: 4.92853717 | D5: =C5-B5 -> -0.2924637871 | E5: N.B. These generation average tariffs include local tariffs

Sheet T7
A1: Table 7 - Generation Wider Tariffs | I1: Return to Index
G2: Example tariffs for a generator of each technology type
C3: System Peak | D3: Shared Year Round | E3: Not Shared Year Round | F3: Residual | G3: Conventional Carbon 80% | H3: Conventional Low Carbon 80% | I3: Intermittent 40%
A4: Zone | B4: Zone Name | C4: Tariff (£/kW) | D4: Tariff (£/kW) | E4: Tariff (£/kW) | F4: Tariff (£/kW) | G4: Tariff (£/kW) | H4: Tariff (£/kW) | I4: Tariff (£/kW)
A5: 1 | B5: North Scotland | C5: 2.757559 | D5: 20.886179 | E5: 15.020708 | F5: -4.776901 | G5: 26.7061676 | H5: 29.7103092 | I5: 18.5982786
A6: 2 | B6: East Aberdeenshire | C6: 4.935038 | D6: 13.275963 | E6: 15.020708 | F6: -4.776901 | G6: 22.7954738 | H6: 25.7996154 | I6: 15.5541922
A7: 3 | B7: Western Highlands | C7: 2.155259 | D7: 19.437083 | E7: 14.825085 | F7: -4.776901 | G7: 24.7880924 | H7: 27.7531094 | I7: 17.8230172
A8: 4 | B8: Skye and Lochalsh | C8: -4.189858 | D8: 19.437083 | E8: 14.741196 | F8: -4.776901 | G8: 18.3758642 | H8: 21.3241034 | I8: 17.7391282
A9: 5 | B9: Eastern Grampian and Tayside | C9: 3.078284 | D9: 17.730691 | E9: 14.289595 | F9: -4.776901 | G9: 23.9176118 | H9: 26.7755308 | I9: 16.6049704
A10: 6 | B10: Central Grampian | C10: 3.776885 | D10: 16.975371 | E10: 13.911555 | F10: -4.776901 | G10: 23.7095248 | H10: 26.4918358 | I10: 15.9248024
A11: 7 | B11: Argyll | C11: 3.602373 | D11: 13.849315 | E11: 24.007837 | F11: -4.776901 | G11: 29.1111936 | H11: 33.912761 | I11: 24.770662
A12: 8 | B12: The Trossachs | C12: 3.681714 | D12: 13.849315 | E12: 12.279891 | F12: -4.776901 | G12: 19.8081778 | H12: 22.264156 | I12: 13.042716
A13: 9 | B13: Stirlingshire and Fife | C13: 2.449239 | D13: 11.520782 | E13: 11.460666 | F13: -4.776901 | G13: 16.0574964 | H13: 18.3496296 | I13: 11.2920778
A14: 10 | B14: South West Scotlands | C14: 2.865039 | D14: 12.084807 | E14: 11.63084 | F14: -4.776901 | G14: 17.0606556 | H14: 19.3868236 | I14: 11.6878618
A15: 11 | B15: Lothian and Borders | C15: 3.993917 | D15: 12.084807 | E15: 6.034676 | F15: -4.776901 | G15: 13.7126024 | H15: 14.9195376 | I15: 6.0916978
A16: 12 | B16: Solway and Cheviot | C16: 1.799361 | D16: 7.648421 | E16: 6.433424 | F16: -4.776901 | G16: 8.287936 | H16: 9.5746208 | I16: 4.7158914
A17: 13 | B17: North East England | C17: 3.911277 | D17: 5.863045 | E17: 4.261189 | F17: -4.776901 | G17: 7.2337632 | H17: 8.086001 | I17: 1.829506
A18: 14 | B18: North Lancashire and The Lakes | C18: 1.912857 | D18: 5.863045 | E18: 0.871521 | F18: -4.776901 | G18: 2.5236088 | H18: 2.697913 | I18: -1.560162
A19: 15 | B19: South Lancashire, Yorkshire and Humber | C19: 4.634233 | D19: 1.4277 | E19: 0.133586 | F19: -4.776901 | G19: 1.1063608 | H19: 1.133078 | I19: -4.072235
A20: 16 | B20: North Midlands and North Wales | C20: 3.366464 | D20: 0.356219 | E20: 0 | F20: -4.776901 | G20: -1.1254618 | H20: -1.1254618 | I20: -4.6344134
A21: 17 | B21: South Lincolnshire and North Norfolk | C21: 1.773741 | D21: 0.373111 | E21: 0 | F21: -4.776901 | G21: -2.7046712 | H21: -2.7046712 | I21: -4.6276566
A22: 18 | B22: Mid Wales and The Midlands | C22: 1.029303 | D22: 1.033669 | E22: 0 | F22: -4.776901 | G22: -2.9206628 | H22: -2.9206628 | I22: -4.3634334
A23: 19 | B23: Anglesey and Snowdon | C23: 3.478105 | D23: 1.652149 | E23: 0 | F23: -4.776901 | G23: 0.0229232 | H23: 0.0229232 | I23: -4.1160414
A24: 20 | B24: Pembrokeshire | C24: 9.120854 | D24: -4.821634 | E24: 0 | F24: -4.776901 | G24: 0.4866458 | H24: 0.4866458 | I24: -6.7055546
A25: 21 | B25: South Wales & Gloucester | C25: 5.84733 | D25: -4.943502 | E25: 0 | F25: -4.776901 | G25: -2.8843726 | H25: -2.8843726 | I25: -6.7543018
A26: 22 | B26: Cotswold | C26: 2.545923 | D26: 2.903884 | E26: -7.889268 | F26: -4.776901 | G26: -6.2192852 | H26: -7.7971388 | I26: -11.5046154
A27: 23 | B27: Central London | C27: -5.774827 | D27: 2.903884 | E27: -7.143155 | F27: -4.776901 | G27: -13.9431448 | H27: -15.3717758 | I27: -10.7585024
A28: 24 | B28: Essex and Kent | C28: -3.808707 | D28: 2.903884 | E28: 0 | F28: -4.776901 | G28: -6.2625008 | H28: -6.2625008 | I28: -3.6153474
A29: 25 | B29: Oxfordshire, Surrey and Sussex | C29: -0.933905 | D29: -2.367562 | E29: 0 | F29: -4.776901 | G29: -7.6048556 | H29: -7.6048556 | I29: -5.7239258
A30: 26 | B30: Somerset and Wessex | C30: -1.797376 | D30: -3.218074 | E30: 0 | F30: -4.776901 | G30: -9.1487362 | H30: -9.1487362 | I30: -6.0641306
A31: 27 | B31: West Devon and Cornwall | C31: -0.261669 | D31: -5.786841 | E31: 0 | F31: -4.776901 | G31: -9.6680428 | H31: -9.6680428 | I31: -7.0916374
C33: Small Generator Discount (£/kW) | F33: 11.776143

Sheet T8 & Fig 4
A1: Table 8 - Generation Tariff Changes | L1: Return to Index
A4: Wider Generation Tariffs (£/kW)
C5: Conventional Carbon 80% | F5: Conventional Low Carbon 80% | I5: Intermittent 40% | L5: Change in Residual (£/kW)
A6: Zone | B6: Zone Name | C6: ='T4'!C4 -> 2020/21 July (£/kW) | D6: ='T4'!D4 -> 2020/21 Draft (£/kW) | E6: Change (£/kW) | F6: =C6 -> 2020/21 July (£/kW) | G6: =D6 -> 2020/21 Draft (£/kW) | H6: Change (£/kW) | I6: =F6 -> 2020/21 July (£/kW) | J6: =G6 -> 2020/21 Draft (£/kW) | K6: Change (£/kW)
A7: 1 | B7: North Scotland | C7: 24.9280808 | D7: 26.7061676 | E7: =D7-C7 -> 1.7780868 | F7: 27.666246 | G7: 29.7103092 | H7: =G7-F7 -> 2.0440632 | I7: 17.1569 | J7: 18.5982786 | K7: =J7-I7 -> 1.4413786 | L7: -0.243400765
A8: 2 | B8: East Aberdeenshire | C8: 21.157654 | D8: 22.7954738 | E8: =D8-C8 -> 1.6378198 | F8: 23.8958192 | G8: 25.7996154 | H8: =G8-F8 -> 1.9037962 | I8: 14.0749396 | J8: 15.5541922 | K8: =J8-I8 -> 1.4792526 | L8: -0.243400765
A9: 3 | B9: Western Highlands | C9: 23.0992508 | D9: 24.7880924 | E9: 1.6888416 | F9: 25.8020712 | G9: 27.7531094 | H9: 1.9510382 | I9: 16.4212156 | J9: 17.8230172 | K9: 1.4018016 | L9: -0.243400765
A10: 4 | B10: Skye and Lochalsh | C10: 28.0241852 | D10: 18.3758642 | E10: -9.648321 | F10: 31.9704732 | G10: 21.3241034 | H10: -10.6463698 | I10: 22.6385536 | J10: 17.7391282 | K10: -4.8994254 | L10: -0.243400765
A11: 5 | B11: Eastern Grampian and Tayside | C11: 21.7184864 | D11: 23.9176118 | E11: 2.1991254 | F11: 24.3005222 | G11: 26.7755308 | H11: 2.4750086 | I11: 15.0259986 | J11: 16.6049704 | K11: 1.5789718 | L11: -0.243400765
A12: 6 | B12: Central Grampian | C12: 21.7352096 | D12: 23.7095248 | E12: 1.9743152 | F12: 24.2401044 | G12: 26.4918358 | H12: 2.2517314 | I12: 14.3266952 | J12: 15.9248024 | K12: 1.5981072 | L12: -0.243400765
A13: 7 | B13: Argyll | C13: 26.9804694 | D13: 29.1111936 | E13: 2.1307242 | F13: 31.454984 | G13: 33.912761 | H13: 2.457777 | I13: 22.954723 | J13: 24.770662 | K13: 1.815939 | L13: -0.243400765
A14: 8 | B14: The Trossachs | C14: 18.0860112 | D14: 19.8081778 | E14: 1.7221666 | F14: 20.277698 | G14: 22.264156 | H14: 1.986458 | I14: 11.540584 | J14: 13.042716 | K14: 1.502132 | L14: -0.243400765
A15: 9 | B15: Stirlingshire and Fife | C15: 14.2827074 | D15: 16.0574964 | E15: 1.774789 | F15: 16.3177736 | G15: 18.3496296 | H15: 2.031856 | I15: 9.8501798 | J15: 11.2920778 | K15: 1.441898 | L15: -0.243400765
A16: 10 | B16: South West Scotlands | C16: 15.4589676 | D16: 17.0606556 | E16: 1.601688 | F16: 17.51771 | G16: 19.3868236 | H16: 1.8691136 | I16: 10.156968 | J16: 11.6878618 | K16: 1.5308938 | L16: -0.243400765
A17: 11 | B17: Lothian and Borders | C17: 11.9183124 | D17: 13.7126024 | E17: 1.79429 | F17: 12.937842 | G17: 14.9195376 | H17: 1.9816956 | I17: 4.960904 | J17: 6.0916978 | K17: 1.1307938 | L17: -0.243400765
A18: 12 | B18: Solway and Cheviot | C18: 7.1896772 | D18: 8.287936 | E18: 1.0982588 | F18: 8.3457418 | G18: 9.5746208 | H18: 1.228879 | I18: 3.9808894 | J18: 4.7158914 | K18: 0.735002 | L18: -0.243400765
A19: 13 | B19: North East England | C19: 6.1949818 | D19: 7.2337632 | E19: 1.0387814 | F19: 6.943931 | G19: 8.086001 | H19: 1.14207 | I19: 1.219918 | J19: 1.829506 | K19: 0.609588 | L19: -0.243400765
A20: 14 | B20: North Lancashire and The Lakes | C20: 1.4880452 | D20: 2.5236088 | E20: 1.0355636 | F20: 1.641222 | G20: 2.697913 | H20: 1.056691 | I20: -1.758944 | J20: -1.560162 | K20: 0.198782 | L20: -0.243400765
A21: 15 | B21: South Lancashire, Yorkshire and Humber | C21: 0.950138 | D21: 1.1063608 | E21: 0.1562228 | F21: 0.9772706 | G21: 1.133078 | H21: 0.1558074 | I21: -4.0188382 | J21: -4.072235 | K21: -0.0533968 | L21: -0.243400765
A22: 16 | B22: North Midlands and North Wales | C22: -1.280242 | D22: -1.1254618 | E22: 0.1547802 | F22: -1.280242 | G22: -1.1254618 | H22: 0.1547802 | I22: -4.695132 | J22: -4.6344134 | K22: 0.0607186 | L22: -0.243400765
A23: 17 | B23: South Lincolnshire and North Norfolk | C23: -2.7888338 | D23: -2.7046712 | E23: 0.0841626 | F23: -2.7888338 | G23: -2.7046712 | H23: 0.0841626 | I23: -4.5277964 | J23: -4.6276566 | K23: -0.0998602 | L23: -0.243400765
A24: 18 | B24: Mid Wales and The Midlands | C24: -3.1651662 | D24: -2.9206628 | E24: 0.2445034 | F24: -3.1651662 | G24: -2.9206628 | H24: 0.2445034 | I24: -4.2633896 | J24: -4.3634334 | K24: -0.1000438 | L24: -0.243400765
A25: 19 | B25: Anglesey and Snowdon | C25: 0.0654798 | D25: 0.0229232 | E25: -0.0425566 | F25: 0.0654798 | G25: 0.0229232 | H25: -0.0425566 | I25: -4.8410136 | J25: -4.1160414 | K25: 0.7249722 | L25: -0.243400765
A26: 20 | B26: Pembrokeshire | C26: 2.0601956 | D26: 0.4866458 | E26: -1.5735498 | F26: 2.0601956 | G26: 0.4866458 | H26: -1.5735498 | I26: -6.2277472 | J26: -6.7055546 | K26: -0.4778074 | L26: -0.243400765
A27: 21 | B27: South Wales & Gloucester | C27: -1.207258 | D27: -2.8843726 | E27: -1.6771146 | F27: -1.207258 | G27: -2.8843726 | H27: -1.6771146 | I27: -6.25179 | J27: -6.7543018 | K27: -0.5025118 | L27: -0.243400765
A28: 22 | B28: Cotswold | C28: -4.5632694 | D28: -6.2192852 | E28: -1.6560158 | F28: -5.9703762 | G28: -7.7971388 | H28: -1.8267626 | I28: -10.4921576 | J28: -11.5046154 | K28: -1.0124578 | L28: -0.243400765
A29: 23 | B29: Central London | C29: -13.8845448 | D29: -13.9431448 | E29: -0.0586 | F29: -15.2586032 | G29: -15.3717758 | H29: -0.1131726 | I29: -10.3269156 | J29: -10.7585024 | K29: -0.4315868 | L29: -0.243400765
A30: 24 | B30: Essex and Kent | C30: -6.3386772 | D30: -6.2625008 | E30: 0.0761764 | F30: -6.3386772 | G30: -6.2625008 | H30: 0.0761764 | I30: -3.4566236 | J30: -3.6153474 | K30: -0.1587238 | L30: -0.243400765
A31: 25 | B31: Oxfordshire, Surrey and Sussex | C31: -7.9470134 | D31: -7.6048556 | E31: 0.3421578 | F31: -7.9470134 | G31: -7.6048556 | H31: 0.3421578 | I31: -5.5779312 | J31: -5.7239258 | K31: -0.1459946 | L31: -0.243400765
A32: 26 | B32: Somerset and Wessex | C32: -8.2254574 | D32: -9.1487362 | E32: -0.9232788 | F32: -8.2254574 | G32: -9.1487362 | H32: -0.9232788 | I32: -5.7342272 | J32: -6.0641306 | K32: -0.3299034 | L32: -0.243400765
A33: 27 | B33: West Devon and Cornwall | C33: -8.4881034 | D33: -9.6680428 | E33: -1.1799394 | F33: -8.4881034 | G33: -9.6680428 | H33: -1.1799394 | I33: -6.6948812 | J33: -7.0916374 | K33: -0.3967562 | L33: -0.243400765
A35: Figure 4 - Variation in Generation Zonal Tariffs

Sheet T9
A1: Table 9 - Local Substation Tariffs | E1: Return to Index
A3: 2020/21 Local Substation Tariff (£/kW)
A4: Substation Rating | B4: Connection Type | C4: 132kV | D4: 275kV | E4: 400kV
A6: <1320 MW | B6: No redundancy | C6: 0.203273 | D6: 0.116285 | E6: 0.083786
A7: <1320 MW | B7: Redundancy | C7: 0.447793 | D7: 0.277053 | E7: 0.201494
A8: >=1320 MW | B8: No redundancy | C8: n/a | D8: 0.364605 | E8: 0.263683
A9: >=1320 MW | B9: Redundancy | C9: n/a | D9: 0.598588 | E9: 0.43692

Sheet T10
A1: Table 10 - Onshore Local Circuit Tariffs | H1: Return to Index
A3: Substation Name | B3: (£/kW) | C3: Substation Name | D3: (£/kW) | E3: Substation Name | F3: (£/kW)
A4: Achruach | B4: 4.347087069 | C4: Farr | D4: 3.6097814 | E4: Nant | F4: -1.243878808
A5: Aigas | B5: 0.6621657792 | C5: Fallago | D5: 0.4389029862 | E5: Necton | F5: 1.137456039
A6: An Suidhe | B6: -0.969881976 | C6: Fernoch | D6: 4.45344809 | E6: Rhigos | F6: 0.1028932733
A7: Arecleoch | B7: 2.102788224 | C7: Ffestiniogg | D7: 0.2561468888 | E7: Rocksavage | F7: 0.01791997848
A8: Baglan Bay | B8: 0.7703672377 | C8: Finlarig | D8: 0.3241842433 | E8: Saltend | F8: 0.01756604523
A9: Beinneun Wind Farm | B9: 1.520650687 | C9: Foyers | D9: 0.2965620594 | E9: South Humber Bank | F9: 0.4188349802
A10: Black Hill | B10: 1.572317885 | C10: Galawhistle | D10: 3.542645009 | E10: Spalding | F10: 0.2869425235
A11: BlackCraig Wind Farm | B11: 6.373396626 | C11: Glendoe | D11: 1.862308895 | E11: Strathbrora | F11: 0.1096320844
A12: BlackLaw Extension | B12: 3.751647379 | C12: Glenglass | D12: 4.871410093 | E12: Stronelairg | F12: 1.089127348
A13: Black Law | B13: 1.769119728 | C13: Gordonbush | D13: 0.2416299275 | E13: Strathy Wind | F13: 1.899306262
A14: Clyde (North) | B14: 0.1110316889 | C14: Griffin Wind | D14: 9.834414729 | E14: Wester Dod | F14: 0.4817893328
A15: Clyde (South) | B15: 0.1284027757 | C15: Hadyard Hill | D15: 2.802339719 | E15: Whitelee | F15: 0.1074500215
A16: Corriegarth | B16: 2.933095535 | C16: Harestanes | D16: 2.55589396 | E16: Whitelee Extension | F16: 0.2987110598
A17: Corriemoillie | B17: 1.686171345 | C17: Hartlepool | D17: 0.2079934218 | E17: Bhlaraidh Wind Farm | F17: 0.6536860686
A18: Coryton | B18: 0.04999915036 | C18: Invergarry | D18: 0.370496278 | E18: Dorenell | F18: 2.124753899
A19: Cruachan | B19: 1.847527547 | C19: Kilgallioch | D19: 1.065546047 | E19: Kype Muir | F19: 1.501711239
A20: Crystal Rig | B20: 0.1372791075 | C20: Kilmorack | D20: 0.1999505583 | E20: Middle Muir | F20: 2.006854839
A21: Culligran | B21: 1.754754847 | C21: Langage | D21: 0.6658867255 | E21: Aberdeen Bay | F21: 2.639785981
A22: Deanie | B22: 2.882811535 | C22: Lochay | D22: 0.370496278 | E22: Aberarder | F22: 1.675569538
A23: Dersalloch | B23: 2.438787555 | C23: Luichart | D23: 0.5823578564 | E23: New Deer | F23: 0.7623579027
A24: Dinorwig | B24: 2.429140187 | C24: Mark Hill | D24: 0.8864626776
A25: Dunlaw Extension | B25: 1.526907219 | C25: Marchwood | D25: 0.3863859298
A26: Dunhill | B26: 1.450144536 | C26: Middleton | D26: 0.1503440122
A27: Dumnaglass | B27: 1.147509528 | C27: Millennium Wind | D27: 1.849065385
A28: Edinbane | B28: 6.930671264 | C28: Moffat | D28: 0.1893489844
A29: Ewe Hill | B29: 2.464150524 | C29: Mossford | D29: 2.916850529

Sheet T10 A-Z
A1: Table 10 - Onshore Local Circuit Tariffs | H1: Return to Index
A3: Substation Name | B3: (£/kW) | C3: Substation Name | D3: (£/kW) | E3: Substation Name | F3: (£/kW)
A4: Aberarder | B4: =IF(ISNA(VLOOKUP(A4,'T10'!$A$4:$B$29,2,0)),IF(ISNA(VLOOKUP(A4,'T10'!$C$4:$D$29,2,0)),VLOOKUP(A4,'T10'!$E$4:$F$29,2,0),VLOOKUP(A4,'T10'!$C$4:$D$29,2,0)),VLOOKUP(A4,'T10'!$A$4:$B$29,2,0)) -> 1.675569538 | C4: Dunhill | D4: =IF(ISNA(VLOOKUP(C4,'T10'!$A$4:$B$29,2,0)),IF(ISNA(VLOOKUP(C4,'T10'!$C$4:$D$29,2,0)),VLOOKUP(C4,'T10'!$E$4:$F$29,2,0),VLOOKUP(C4,'T10'!$C$4:$D$29,2,0)),VLOOKUP(C4,'T10'!$A$4:$B$29,2,0)) -> 1.450144536 | E4: Mark Hill | F4: =IF(ISNA(VLOOKUP(E4,'T10'!$A$4:$B$29,2,0)),IF(ISNA(VLOOKUP(E4,'T10'!$C$4:$D$29,2,0)),VLOOKUP(E4,'T10'!$E$4:$F$29,2,0),VLOOKUP(E4,'T10'!$C$4:$D$29,2,0)),VLOOKUP(E4,'T10'!$A$4:$B$29,2,0)) -> 0.8864626776
A5: Aberdeen Bay | B5: =IF(ISNA(VLOOKUP(A5,'T10'!$A$4:$B$29,2,0)),IF(ISNA(VLOOKUP(A5,'T10'!$C$4:$D$29,2,0)),VLOOKUP(A5,'T10'!$E$4:$F$29,2,0),VLOOKUP(A5,'T10'!$C$4:$D$29,2,0)),VLOOKUP(A5,'T10'!$A$4:$B$29,2,0)) -> 2.639785981 | C5: Dunlaw Extension | D5: =IF(ISNA(VLOOKUP(C5,'T10'!$A$4:$B$29,2,0)),IF(ISNA(VLOOKUP(C5,'T10'!$C$4:$D$29,2,0)),VLOOKUP(C5,'T10'!$E$4:$F$29,2,0),VLOOKUP(C5,'T10'!$C$4:$D$29,2,0)),VLOOKUP(C5,'T10'!$A$4:$B$29,2,0)) -> 1.526907219 | E5: Middle Muir | F5: =IF(ISNA(VLOOKUP(E5,'T10'!$A$4:$B$29,2,0)),IF(ISNA(VLOOKUP(E5,'T10'!$C$4:$D$29,2,0)),VLOOKUP(E5,'T10'!$E$4:$F$29,2,0),VLOOKUP(E5,'T10'!$C$4:$D$29,2,0)),VLOOKUP(E5,'T10'!$A$4:$B$29,2,0)) -> 2.006854839
A6: Achruach | B6: =IF(ISNA(VLOOKUP(A6,'T10'!$A$4:$B$29,2,0)),IF(ISNA(VLOOKUP(A6,'T10'!$C$4:$D$29,2,0)),VLOOKUP(A6,'T10'!$E$4:$F$29,2,0),VLOOKUP(A6,'T10'!$C$4:$D$29,2,0)),VLOOKUP(A6,'T10'!$A$4:$B$29,2,0)) -> 4.347087069 | C6: Edinbane | D6: =IF(ISNA(VLOOKUP(C6,'T10'!$A$4:$B$29,2,0)),IF(ISNA(VLOOKUP(C6,'T10'!$C$4:$D$29,2,0)),VLOOKUP(C6,'T10'!$E$4:$F$29,2,0),VLOOKUP(C6,'T10'!$C$4:$D$29,2,0)),VLOOKUP(C6,'T10'!$A$4:$B$29,2,0)) -> 6.930671264 | E6: Middleton | F6: =IF(ISNA(VLOOKUP(E6,'T10'!$A$4:$B$29,2,0)),IF(ISNA(VLOOKUP(E6,'T10'!$C$4:$D$29,2,0)),VLOOKUP(E6,'T10'!$E$4:$F$29,2,0),VLOOKUP(E6,'T10'!$C$4:$D$29,2,0)),VLOOKUP(E6,'T10'!$A$4:$B$29,2,0)) -> 0.1503440122
A7: Aigas | B7: =IF(ISNA(VLOOKUP(A7,'T10'!$A$4:$B$29,2,0)),IF(ISNA(VLOOKUP(A7,'T10'!$C$4:$D$29,2,0)),VLOOKUP(A7,'T10'!$E$4:$F$29,2,0),VLOOKUP(A7,'T10'!$C$4:$D$29,2,0)),VLOOKUP(A7,'T10'!$A$4:$B$29,2,0)) -> 0.6621657792 | C7: Ewe Hill | D7: =IF(ISNA(VLOOKUP(C7,'T10'!$A$4:$B$29,2,0)),IF(ISNA(VLOOKUP(C7,'T10'!$C$4:$D$29,2,0)),VLOOKUP(C7,'T10'!$E$4:$F$29,2,0),VLOOKUP(C7,'T10'!$C$4:$D$29,2,0)),VLOOKUP(C7,'T10'!$A$4:$B$29,2,0)) -> 2.464150524 | E7: Millennium Wind | F7: =IF(ISNA(VLOOKUP(E7,'T10'!$A$4:$B$29,2,0)),IF(ISNA(VLOOKUP(E7,'T10'!$C$4:$D$29,2,0)),VLOOKUP(E7,'T10'!$E$4:$F$29,2,0),VLOOKUP(E7,'T10'!$C$4:$D$29,2,0)),VLOOKUP(E7,'T10'!$A$4:$B$29,2,0)) -> 1.849065385
A8: An Suidhe | B8: =IF(ISNA(VLOOKUP(A8,'T10'!$A$4:$B$29,2,0)),IF(ISNA(VLOOKUP(A8,'T10'!$C$4:$D$29,2,0)),VLOOKUP(A8,'T10'!$E$4:$F$29,2,0),VLOOKUP(A8,'T10'!$C$4:$D$29,2,0)),VLOOKUP(A8,'T10'!$A$4:$B$29,2,0)) -> -0.969881976 | C8: Fallago | D8: =IF(ISNA(VLOOKUP(C8,'T10'!$A$4:$B$29,2,0)),IF(ISNA(VLOOKUP(C8,'T10'!$C$4:$D$29,2,0)),VLOOKUP(C8,'T10'!$E$4:$F$29,2,0),VLOOKUP(C8,'T10'!$C$4:$D$29,2,0)),VLOOKUP(C8,'T10'!$A$4:$B$29,2,0)) -> 0.4389029862 | E8: Moffat | F8: =IF(ISNA(VLOOKUP(E8,'T10'!$A$4:$B$29,2,0)),IF(ISNA(VLOOKUP(E8,'T10'!$C$4:$D$29,2,0)),VLOOKUP(E8,'T10'!$E$4:$F$29,2,0),VLOOKUP(E8,'T10'!$C$4:$D$29,2,0)),VLOOKUP(E8,'T10'!$A$4:$B$29,2,0)) -> 0.1893489844
A9: Arecleoch | B9: =IF(ISNA(VLOOKUP(A9,'T10'!$A$4:$B$29,2,0)),IF(ISNA(VLOOKUP(A9,'T10'!$C$4:$D$29,2,0)),VLOOKUP(A9,'T10'!$E$4:$F$29,2,0),VLOOKUP(A9,'T10'!$C$4:$D$29,2,0)),VLOOKUP(A9,'T10'!$A$4:$B$29,2,0)) -> 2.102788224 | C9: Farr | D9: =IF(ISNA(VLOOKUP(C9,'T10'!$A$4:$B$29,2,0)),IF(ISNA(VLOOKUP(C9,'T10'!$C$4:$D$29,2,0)),VLOOKUP(C9,'T10'!$E$4:$F$29,2,0),VLOOKUP(C9,'T10'!$C$4:$D$29,2,0)),VLOOKUP(C9,'T10'!$A$4:$B$29,2,0)) -> 3.6097814 | E9: Mossford | F9: =IF(ISNA(VLOOKUP(E9,'T10'!$A$4:$B$29,2,0)),IF(ISNA(VLOOKUP(E9,'T10'!$C$4:$D$29,2,0)),VLOOKUP(E9,'T10'!$E$4:$F$29,2,0),VLOOKUP(E9,'T10'!$C$4:$D$29,2,0)),VLOOKUP(E9,'T10'!$A$4:$B$29,2,0)) -> 2.916850529
A10: Baglan Bay | B10: =IF(ISNA(VLOOKUP(A10,'T10'!$A$4:$B$29,2,0)),IF(ISNA(VLOOKUP(A10,'T10'!$C$4:$D$29,2,0)),VLOOKUP(A10,'T10'!$E$4:$F$29,2,0),VLOOKUP(A10,'T10'!$C$4:$D$29,2,0)),VLOOKUP(A10,'T10'!$A$4:$B$29,2,0)) -> 0.7703672377 | C10: Fernoch | D10: =IF(ISNA(VLOOKUP(C10,'T10'!$A$4:$B$29,2,0)),IF(ISNA(VLOOKUP(C10,'T10'!$C$4:$D$29,2,0)),VLOOKUP(C10,'T10'!$E$4:$F$29,2,0),VLOOKUP(C10,'T10'!$C$4:$D$29,2,0)),VLOOKUP(C10,'T10'!$A$4:$B$29,2,0)) -> 4.45344809 | E10: Nant | F10: =IF(ISNA(VLOOKUP(E10,'T10'!$A$4:$B$29,2,0)),IF(ISNA(VLOOKUP(E10,'T10'!$C$4:$D$29,2,0)),VLOOKUP(E10,'T10'!$E$4:$F$29,2,0),VLOOKUP(E10,'T10'!$C$4:$D$29,2,0)),VLOOKUP(E10,'T10'!$A$4:$B$29,2,0)) -> -1.243878808
A11: Beinneun Wind Farm | B11: =IF(ISNA(VLOOKUP(A11,'T10'!$A$4:$B$29,2,0)),IF(ISNA(VLOOKUP(A11,'T10'!$C$4:$D$29,2,0)),VLOOKUP(A11,'T10'!$E$4:$F$29,2,0),VLOOKUP(A11,'T10'!$C$4:$D$29,2,0)),VLOOKUP(A11,'T10'!$A$4:$B$29,2,0)) -> 1.520650687 | C11: Ffestiniogg | D11: =IF(ISNA(VLOOKUP(C11,'T10'!$A$4:$B$29,2,0)),IF(ISNA(VLOOKUP(C11,'T10'!$C$4:$D$29,2,0)),VLOOKUP(C11,'T10'!$E$4:$F$29,2,0),VLOOKUP(C11,'T10'!$C$4:$D$29,2,0)),VLOOKUP(C11,'T10'!$A$4:$B$29,2,0)) -> 0.2561468888 | E11: Necton | F11: =IF(ISNA(VLOOKUP(E11,'T10'!$A$4:$B$29,2,0)),IF(ISNA(VLOOKUP(E11,'T10'!$C$4:$D$29,2,0)),VLOOKUP(E11,'T10'!$E$4:$F$29,2,0),VLOOKUP(E11,'T10'!$C$4:$D$29,2,0)),VLOOKUP(E11,'T10'!$A$4:$B$29,2,0)) -> 1.137456039
A12: Bhlaraidh Wind Farm | B12: =IF(ISNA(VLOOKUP(A12,'T10'!$A$4:$B$29,2,0)),IF(ISNA(VLOOKUP(A12,'T10'!$C$4:$D$29,2,0)),VLOOKUP(A12,'T10'!$E$4:$F$29,2,0),VLOOKUP(A12,'T10'!$C$4:$D$29,2,0)),VLOOKUP(A12,'T10'!$A$4:$B$29,2,0)) -> 0.6536860686 | C12: Finlarig | D12: =IF(ISNA(VLOOKUP(C12,'T10'!$A$4:$B$29,2,0)),IF(ISNA(VLOOKUP(C12,'T10'!$C$4:$D$29,2,0)),VLOOKUP(C12,'T10'!$E$4:$F$29,2,0),VLOOKUP(C12,'T10'!$C$4:$D$29,2,0)),VLOOKUP(C12,'T10'!$A$4:$B$29,2,0)) -> 0.3241842433 | E12: New Deer | F12: =IF(ISNA(VLOOKUP(E12,'T10'!$A$4:$B$29,2,0)),IF(ISNA(VLOOKUP(E12,'T10'!$C$4:$D$29,2,0)),VLOOKUP(E12,'T10'!$E$4:$F$29,2,0),VLOOKUP(E12,'T10'!$C$4:$D$29,2,0)),VLOOKUP(E12,'T10'!$A$4:$B$29,2,0)) -> 0.7623579027
A13: Black Hill | B13: =IF(ISNA(VLOOKUP(A13,'T10'!$A$4:$B$29,2,0)),IF(ISNA(VLOOKUP(A13,'T10'!$C$4:$D$29,2,0)),VLOOKUP(A13,'T10'!$E$4:$F$29,2,0),VLOOKUP(A13,'T10'!$C$4:$D$29,2,0)),VLOOKUP(A13,'T10'!$A$4:$B$29,2,0)) -> 1.572317885 | C13: Foyers | D13: =IF(ISNA(VLOOKUP(C13,'T10'!$A$4:$B$29,2,0)),IF(ISNA(VLOOKUP(C13,'T10'!$C$4:$D$29,2,0)),VLOOKUP(C13,'T10'!$E$4:$F$29,2,0),VLOOKUP(C13,'T10'!$C$4:$D$29,2,0)),VLOOKUP(C13,'T10'!$A$4:$B$29,2,0)) -> 0.2965620594 | E13: Rhigos | F13: =IF(ISNA(VLOOKUP(E13,'T10'!$A$4:$B$29,2,0)),IF(ISNA(VLOOKUP(E13,'T10'!$C$4:$D$29,2,0)),VLOOKUP(E13,'T10'!$E$4:$F$29,2,0),VLOOKUP(E13,'T10'!$C$4:$D$29,2,0)),VLOOKUP(E13,'T10'!$A$4:$B$29,2,0)) -> 0.1028932733
A14: Black Law | B14: =IF(ISNA(VLOOKUP(A14,'T10'!$A$4:$B$29,2,0)),IF(ISNA(VLOOKUP(A14,'T10'!$C$4:$D$29,2,0)),VLOOKUP(A14,'T10'!$E$4:$F$29,2,0),VLOOKUP(A14,'T10'!$C$4:$D$29,2,0)),VLOOKUP(A14,'T10'!$A$4:$B$29,2,0)) -> 1.769119728 | C14: Galawhistle | D14: =IF(ISNA(VLOOKUP(C14,'T10'!$A$4:$B$29,2,0)),IF(ISNA(VLOOKUP(C14,'T10'!$C$4:$D$29,2,0)),VLOOKUP(C14,'T10'!$E$4:$F$29,2,0),VLOOKUP(C14,'T10'!$C$4:$D$29,2,0)),VLOOKUP(C14,'T10'!$A$4:$B$29,2,0)) -> 3.542645009 | E14: Rocksavage | F14: =IF(ISNA(VLOOKUP(E14,'T10'!$A$4:$B$29,2,0)),IF(ISNA(VLOOKUP(E14,'T10'!$C$4:$D$29,2,0)),VLOOKUP(E14,'T10'!$E$4:$F$29,2,0),VLOOKUP(E14,'T10'!$C$4:$D$29,2,0)),VLOOKUP(E14,'T10'!$A$4:$B$29,2,0)) -> 0.01791997848
A15: BlackCraig Wind Farm | B15: =IF(ISNA(VLOOKUP(A15,'T10'!$A$4:$B$29,2,0)),IF(ISNA(VLOOKUP(A15,'T10'!$C$4:$D$29,2,0)),VLOOKUP(A15,'T10'!$E$4:$F$29,2,0),VLOOKUP(A15,'T10'!$C$4:$D$29,2,0)),VLOOKUP(A15,'T10'!$A$4:$B$29,2,0)) -> 6.373396626 | C15: Glendoe | D15: =IF(ISNA(VLOOKUP(C15,'T10'!$A$4:$B$29,2,0)),IF(ISNA(VLOOKUP(C15,'T10'!$C$4:$D$29,2,0)),VLOOKUP(C15,'T10'!$E$4:$F$29,2,0),VLOOKUP(C15,'T10'!$C$4:$D$29,2,0)),VLOOKUP(C15,'T10'!$A$4:$B$29,2,0)) -> 1.862308895 | E15: Saltend | F15: =IF(ISNA(VLOOKUP(E15,'T10'!$A$4:$B$29,2,0)),IF(ISNA(VLOOKUP(E15,'T10'!$C$4:$D$29,2,0)),VLOOKUP(E15,'T10'!$E$4:$F$29,2,0),VLOOKUP(E15,'T10'!$C$4:$D$29,2,0)),VLOOKUP(E15,'T10'!$A$4:$B$29,2,0)) -> 0.01756604523
A16: BlackLaw Extension | B16: =IF(ISNA(VLOOKUP(A16,'T10'!$A$4:$B$29,2,0)),IF(ISNA(VLOOKUP(A16,'T10'!$C$4:$D$29,2,0)),VLOOKUP(A16,'T10'!$E$4:$F$29,2,0),VLOOKUP(A16,'T10'!$C$4:$D$29,2,0)),VLOOKUP(A16,'T10'!$A$4:$B$29,2,0)) -> 3.751647379 | C16: Glenglass | D16: =IF(ISNA(VLOOKUP(C16,'T10'!$A$4:$B$29,2,0)),IF(ISNA(VLOOKUP(C16,'T10'!$C$4:$D$29,2,0)),VLOOKUP(C16,'T10'!$E$4:$F$29,2,0),VLOOKUP(C16,'T10'!$C$4:$D$29,2,0)),VLOOKUP(C16,'T10'!$A$4:$B$29,2,0)) -> 4.871410093 | E16: South Humber Bank | F16: =IF(ISNA(VLOOKUP(E16,'T10'!$A$4:$B$29,2,0)),IF(ISNA(VLOOKUP(E16,'T10'!$C$4:$D$29,2,0)),VLOOKUP(E16,'T10'!$E$4:$F$29,2,0),VLOOKUP(E16,'T10'!$C$4:$D$29,2,0)),VLOOKUP(E16,'T10'!$A$4:$B$29,2,0)) -> 0.4188349802
A17: Clyde (North) | B17: =IF(ISNA(VLOOKUP(A17,'T10'!$A$4:$B$29,2,0)),IF(ISNA(VLOOKUP(A17,'T10'!$C$4:$D$29,2,0)),VLOOKUP(A17,'T10'!$E$4:$F$29,2,0),VLOOKUP(A17,'T10'!$C$4:$D$29,2,0)),VLOOKUP(A17,'T10'!$A$4:$B$29,2,0)) -> 0.1110316889 | C17: Gordonbush | D17: =IF(ISNA(VLOOKUP(C17,'T10'!$A$4:$B$29,2,0)),IF(ISNA(VLOOKUP(C17,'T10'!$C$4:$D$29,2,0)),VLOOKUP(C17,'T10'!$E$4:$F$29,2,0),VLOOKUP(C17,'T10'!$C$4:$D$29,2,0)),VLOOKUP(C17,'T10'!$A$4:$B$29,2,0)) -> 0.2416299275 | E17: Spalding | F17: =IF(ISNA(VLOOKUP(E17,'T10'!$A$4:$B$29,2,0)),IF(ISNA(VLOOKUP(E17,'T10'!$C$4:$D$29,2,0)),VLOOKUP(E17,'T10'!$E$4:$F$29,2,0),VLOOKUP(E17,'T10'!$C$4:$D$29,2,0)),VLOOKUP(E17,'T10'!$A$4:$B$29,2,0)) -> 0.2869425235
A18: Clyde (South) | B18: =IF(ISNA(VLOOKUP(A18,'T10'!$A$4:$B$29,2,0)),IF(ISNA(VLOOKUP(A18,'T10'!$C$4:$D$29,2,0)),VLOOKUP(A18,'T10'!$E$4:$F$29,2,0),VLOOKUP(A18,'T10'!$C$4:$D$29,2,0)),VLOOKUP(A18,'T10'!$A$4:$B$29,2,0)) -> 0.1284027757 | C18: Griffin Wind | D18: =IF(ISNA(VLOOKUP(C18,'T10'!$A$4:$B$29,2,0)),IF(ISNA(VLOOKUP(C18,'T10'!$C$4:$D$29,2,0)),VLOOKUP(C18,'T10'!$E$4:$F$29,2,0),VLOOKUP(C18,'T10'!$C$4:$D$29,2,0)),VLOOKUP(C18,'T10'!$A$4:$B$29,2,0)) -> 9.834414729 | E18: Strathbrora | F18: =IF(ISNA(VLOOKUP(E18,'T10'!$A$4:$B$29,2,0)),IF(ISNA(VLOOKUP(E18,'T10'!$C$4:$D$29,2,0)),VLOOKUP(E18,'T10'!$E$4:$F$29,2,0),VLOOKUP(E18,'T10'!$C$4:$D$29,2,0)),VLOOKUP(E18,'T10'!$A$4:$B$29,2,0)) -> 0.1096320844
A19: Corriegarth | B19: =IF(ISNA(VLOOKUP(A19,'T10'!$A$4:$B$29,2,0)),IF(ISNA(VLOOKUP(A19,'T10'!$C$4:$D$29,2,0)),VLOOKUP(A19,'T10'!$E$4:$F$29,2,0),VLOOKUP(A19,'T10'!$C$4:$D$29,2,0)),VLOOKUP(A19,'T10'!$A$4:$B$29,2,0)) -> 2.933095535 | C19: Hadyard Hill | D19: =IF(ISNA(VLOOKUP(C19,'T10'!$A$4:$B$29,2,0)),IF(ISNA(VLOOKUP(C19,'T10'!$C$4:$D$29,2,0)),VLOOKUP(C19,'T10'!$E$4:$F$29,2,0),VLOOKUP(C19,'T10'!$C$4:$D$29,2,0)),VLOOKUP(C19,'T10'!$A$4:$B$29,2,0)) -> 2.802339719 | E19: Strathy Wind | F19: =IF(ISNA(VLOOKUP(E19,'T10'!$A$4:$B$29,2,0)),IF(ISNA(VLOOKUP(E19,'T10'!$C$4:$D$29,2,0)),VLOOKUP(E19,'T10'!$E$4:$F$29,2,0),VLOOKUP(E19,'T10'!$C$4:$D$29,2,0)),VLOOKUP(E19,'T10'!$A$4:$B$29,2,0)) -> 1.899306262
A20: Corriemoillie | B20: =IF(ISNA(VLOOKUP(A20,'T10'!$A$4:$B$29,2,0)),IF(ISNA(VLOOKUP(A20,'T10'!$C$4:$D$29,2,0)),VLOOKUP(A20,'T10'!$E$4:$F$29,2,0),VLOOKUP(A20,'T10'!$C$4:$D$29,2,0)),VLOOKUP(A20,'T10'!$A$4:$B$29,2,0)) -> 1.686171345 | C20: Harestanes | D20: =IF(ISNA(VLOOKUP(C20,'T10'!$A$4:$B$29,2,0)),IF(ISNA(VLOOKUP(C20,'T10'!$C$4:$D$29,2,0)),VLOOKUP(C20,'T10'!$E$4:$F$29,2,0),VLOOKUP(C20,'T10'!$C$4:$D$29,2,0)),VLOOKUP(C20,'T10'!$A$4:$B$29,2,0)) -> 2.55589396 | E20: Stronelairg | F20: =IF(ISNA(VLOOKUP(E20,'T10'!$A$4:$B$29,2,0)),IF(ISNA(VLOOKUP(E20,'T10'!$C$4:$D$29,2,0)),VLOOKUP(E20,'T10'!$E$4:$F$29,2,0),VLOOKUP(E20,'T10'!$C$4:$D$29,2,0)),VLOOKUP(E20,'T10'!$A$4:$B$29,2,0)) -> 1.089127348
A21: Coryton | B21: =IF(ISNA(VLOOKUP(A21,'T10'!$A$4:$B$29,2,0)),IF(ISNA(VLOOKUP(A21,'T10'!$C$4:$D$29,2,0)),VLOOKUP(A21,'T10'!$E$4:$F$29,2,0),VLOOKUP(A21,'T10'!$C$4:$D$29,2,0)),VLOOKUP(A21,'T10'!$A$4:$B$29,2,0)) -> 0.04999915036 | C21: Hartlepool | D21: =IF(ISNA(VLOOKUP(C21,'T10'!$A$4:$B$29,2,0)),IF(ISNA(VLOOKUP(C21,'T10'!$C$4:$D$29,2,0)),VLOOKUP(C21,'T10'!$E$4:$F$29,2,0),VLOOKUP(C21,'T10'!$C$4:$D$29,2,0)),VLOOKUP(C21,'T10'!$A$4:$B$29,2,0)) -> 0.2079934218 | E21: Wester Dod | F21: =IF(ISNA(VLOOKUP(E21,'T10'!$A$4:$B$29,2,0)),IF(ISNA(VLOOKUP(E21,'T10'!$C$4:$D$29,2,0)),VLOOKUP(E21,'T10'!$E$4:$F$29,2,0),VLOOKUP(E21,'T10'!$C$4:$D$29,2,0)),VLOOKUP(E21,'T10'!$A$4:$B$29,2,0)) -> 0.4817893328
A22: Cruachan | B22: =IF(ISNA(VLOOKUP(A22,'T10'!$A$4:$B$29,2,0)),IF(ISNA(VLOOKUP(A22,'T10'!$C$4:$D$29,2,0)),VLOOKUP(A22,'T10'!$E$4:$F$29,2,0),VLOOKUP(A22,'T10'!$C$4:$D$29,2,0)),VLOOKUP(A22,'T10'!$A$4:$B$29,2,0)) -> 1.847527547 | C22: Invergarry | D22: =IF(ISNA(VLOOKUP(C22,'T10'!$A$4:$B$29,2,0)),IF(ISNA(VLOOKUP(C22,'T10'!$C$4:$D$29,2,0)),VLOOKUP(C22,'T10'!$E$4:$F$29,2,0),VLOOKUP(C22,'T10'!$C$4:$D$29,2,0)),VLOOKUP(C22,'T10'!$A$4:$B$29,2,0)) -> 0.370496278 | E22: Whitelee | F22: =IF(ISNA(VLOOKUP(E22,'T10'!$A$4:$B$29,2,0)),IF(ISNA(VLOOKUP(E22,'T10'!$C$4:$D$29,2,0)),VLOOKUP(E22,'T10'!$E$4:$F$29,2,0),VLOOKUP(E22,'T10'!$C$4:$D$29,2,0)),VLOOKUP(E22,'T10'!$A$4:$B$29,2,0)) -> 0.1074500215
A23: Crystal Rig | B23: =IF(ISNA(VLOOKUP(A23,'T10'!$A$4:$B$29,2,0)),IF(ISNA(VLOOKUP(A23,'T10'!$C$4:$D$29,2,0)),VLOOKUP(A23,'T10'!$E$4:$F$29,2,0),VLOOKUP(A23,'T10'!$C$4:$D$29,2,0)),VLOOKUP(A23,'T10'!$A$4:$B$29,2,0)) -> 0.1372791075 | C23: Kilgallioch | D23: =IF(ISNA(VLOOKUP(C23,'T10'!$A$4:$B$29,2,0)),IF(ISNA(VLOOKUP(C23,'T10'!$C$4:$D$29,2,0)),VLOOKUP(C23,'T10'!$E$4:$F$29,2,0),VLOOKUP(C23,'T10'!$C$4:$D$29,2,0)),VLOOKUP(C23,'T10'!$A$4:$B$29,2,0)) -> 1.065546047 | E23: Whitelee Extension | F23: =IF(ISNA(VLOOKUP(E23,'T10'!$A$4:$B$29,2,0)),IF(ISNA(VLOOKUP(E23,'T10'!$C$4:$D$29,2,0)),VLOOKUP(E23,'T10'!$E$4:$F$29,2,0),VLOOKUP(E23,'T10'!$C$4:$D$29,2,0)),VLOOKUP(E23,'T10'!$A$4:$B$29,2,0)) -> 0.2987110598
A24: Culligran | B24: =IF(ISNA(VLOOKUP(A24,'T10'!$A$4:$B$29,2,0)),IF(ISNA(VLOOKUP(A24,'T10'!$C$4:$D$29,2,0)),VLOOKUP(A24,'T10'!$E$4:$F$29,2,0),VLOOKUP(A24,'T10'!$C$4:$D$29,2,0)),VLOOKUP(A24,'T10'!$A$4:$B$29,2,0)) -> 1.754754847 | C24: Kilmorack | D24: =IF(ISNA(VLOOKUP(C24,'T10'!$A$4:$B$29,2,0)),IF(ISNA(VLOOKUP(C24,'T10'!$C$4:$D$29,2,0)),VLOOKUP(C24,'T10'!$E$4:$F$29,2,0),VLOOKUP(C24,'T10'!$C$4:$D$29,2,0)),VLOOKUP(C24,'T10'!$A$4:$B$29,2,0)) -> 0.1999505583
A25: Deanie | B25: =IF(ISNA(VLOOKUP(A25,'T10'!$A$4:$B$29,2,0)),IF(ISNA(VLOOKUP(A25,'T10'!$C$4:$D$29,2,0)),VLOOKUP(A25,'T10'!$E$4:$F$29,2,0),VLOOKUP(A25,'T10'!$C$4:$D$29,2,0)),VLOOKUP(A25,'T10'!$A$4:$B$29,2,0)) -> 2.882811535 | C25: Kype Muir | D25: =IF(ISNA(VLOOKUP(C25,'T10'!$A$4:$B$29,2,0)),IF(ISNA(VLOOKUP(C25,'T10'!$C$4:$D$29,2,0)),VLOOKUP(C25,'T10'!$E$4:$F$29,2,0),VLOOKUP(C25,'T10'!$C$4:$D$29,2,0)),VLOOKUP(C25,'T10'!$A$4:$B$29,2,0)) -> 1.501711239
A26: Dersalloch | B26: =IF(ISNA(VLOOKUP(A26,'T10'!$A$4:$B$29,2,0)),IF(ISNA(VLOOKUP(A26,'T10'!$C$4:$D$29,2,0)),VLOOKUP(A26,'T10'!$E$4:$F$29,2,0),VLOOKUP(A26,'T10'!$C$4:$D$29,2,0)),VLOOKUP(A26,'T10'!$A$4:$B$29,2,0)) -> 2.438787555 | C26: Langage | D26: =IF(ISNA(VLOOKUP(C26,'T10'!$A$4:$B$29,2,0)),IF(ISNA(VLOOKUP(C26,'T10'!$C$4:$D$29,2,0)),VLOOKUP(C26,'T10'!$E$4:$F$29,2,0),VLOOKUP(C26,'T10'!$C$4:$D$29,2,0)),VLOOKUP(C26,'T10'!$A$4:$B$29,2,0)) -> 0.6658867255
A27: Dinorwig | B27: =IF(ISNA(VLOOKUP(A27,'T10'!$A$4:$B$29,2,0)),IF(ISNA(VLOOKUP(A27,'T10'!$C$4:$D$29,2,0)),VLOOKUP(A27,'T10'!$E$4:$F$29,2,0),VLOOKUP(A27,'T10'!$C$4:$D$29,2,0)),VLOOKUP(A27,'T10'!$A$4:$B$29,2,0)) -> 2.429140187 | C27: Lochay | D27: =IF(ISNA(VLOOKUP(C27,'T10'!$A$4:$B$29,2,0)),IF(ISNA(VLOOKUP(C27,'T10'!$C$4:$D$29,2,0)),VLOOKUP(C27,'T10'!$E$4:$F$29,2,0),VLOOKUP(C27,'T10'!$C$4:$D$29,2,0)),VLOOKUP(C27,'T10'!$A$4:$B$29,2,0)) -> 0.370496278
A28: Dorenell | B28: =IF(ISNA(VLOOKUP(A28,'T10'!$A$4:$B$29,2,0)),IF(ISNA(VLOOKUP(A28,'T10'!$C$4:$D$29,2,0)),VLOOKUP(A28,'T10'!$E$4:$F$29,2,0),VLOOKUP(A28,'T10'!$C$4:$D$29,2,0)),VLOOKUP(A28,'T10'!$A$4:$B$29,2,0)) -> 2.124753899 | C28: Luichart | D28: =IF(ISNA(VLOOKUP(C28,'T10'!$A$4:$B$29,2,0)),IF(ISNA(VLOOKUP(C28,'T10'!$C$4:$D$29,2,0)),VLOOKUP(C28,'T10'!$E$4:$F$29,2,0),VLOOKUP(C28,'T10'!$C$4:$D$29,2,0)),VLOOKUP(C28,'T10'!$A$4:$B$29,2,0)) -> 0.5823578564
A29: Dumnaglass | B29: =IF(ISNA(VLOOKUP(A29,'T10'!$A$4:$B$29,2,0)),IF(ISNA(VLOOKUP(A29,'T10'!$C$4:$D$29,2,0)),VLOOKUP(A29,'T10'!$E$4:$F$29,2,0),VLOOKUP(A29,'T10'!$C$4:$D$29,2,0)),VLOOKUP(A29,'T10'!$A$4:$B$29,2,0)) -> 1.147509528 | C29: Marchwood | D29: =IF(ISNA(VLOOKUP(C29,'T10'!$A$4:$B$29,2,0)),IF(ISNA(VLOOKUP(C29,'T10'!$C$4:$D$29,2,0)),VLOOKUP(C29,'T10'!$E$4:$F$29,2,0),VLOOKUP(C29,'T10'!$C$4:$D$29,2,0)),VLOOKUP(C29,'T10'!$A$4:$B$29,2,0)) -> 0.3863859298

Sheet T12
A1: Table 12 - Offshore Local Tariffs | D1: Return to Index
A3: Offshore Generator | B3: Tariff Component (£/kW)
B4: Substation | C4: Circuit | D4: ETUoS
A5: Barrow | B5: 8.169274 | C5: 42.741635 | D5: 1.061333
A6: Burbo Bank | B6: 10.580601 | C6: 20.257999 | D6: 0
A7: Dudgeon | B7: 15.326966 | C7: 23.898895 | D7: 0
A8: Greater Gabbard | B8: 15.33833 | C8: 35.245971 | D8: 0
A9: Gunfleet | B9: 17.680076 | C9: 16.231694 | D9: 3.033797
A10: Gwynt Y Mor | B10: 18.654651 | C10: 18.377138 | D10: 0
A11: Humber Gateway | B11: 15.005644 | C11: 33.857735 | D11: 0
A12: Lincs | B12: 15.268405 | C12: 59.779295 | D12: 0
A13: London Array | B13: 10.412718 | C13: 35.465138 | D13: 0
A14: Ormonde | B14: 25.255009 | C14: 47.047715 | D14: 0.374931
A15: Race Bank | B15: 9.624985 | C15: 26.420532 | D15: 0
A16: Robin Rigg | B16: -0.467184 | C16: 30.946915 | D16: 9.591874
A17: Robin Rigg West | B17: -0.467184 | C17: 30.946915 | D17: 9.591874
A18: Sheringham Shoal | B18: 24.430847 | C18: 28.651661 | D18: 0.622803
A19: Thanet | B19: 18.591504 | C19: 34.642618 | D19: 0.83397
A20: Walney 1 | B20: 21.79627 | C20: 43.407215 | D20: 0
A21: Walney 2 | B21: 21.637751 | C21: 43.789634 | D21: 0
A22: West of Duddon Sands | B22: 8.423723 | C22: 41.56585 | D22: 0
A23: Westermost Rough | B23: 17.737529 | C23: 30.004308 | D23: 0

Sheet T11
A1: Table 11 - CMP203: Circuits subject to one-off charges | E1: Return to Index
A3: Node 1 | B3: Node 2 | C3: Actual Parameters | D3: Amendment in Transport Model | E3: Generator
A4: Dyce 132kV | B4: Aberdeen Bay 132kV | C4: 9.5km of Cable | D4: 9.5km of OHL | E4: Aberdeen Bay
A5: Crystal Rig 132kV | B5: Wester Dod 132kV | C5: 3.9km of Cable | D5: 3.9km of OHL | E5: Aikengall II
A6: Wishaw 132kV | B6: Blacklaw 132kV | C6: 11.46km of Cable | D6: 11.46km of OHL | E6: Blacklaw
A7: Farigaig 132kV | B7: Corriegarth 132kV | C7: 4km Cable | D7: 4km OHL | E7: Corriegarth
A8: Elvanfoot 275kV | B8: Clyde North 275kV | C8: 6.2km of Cable | D8: 6.2km of OHL | E8: Clyde North
A9: Elvanfoot 275kV | B9: Clyde South 275kV | C9: 7.17km of Cable | D9: 7.17km of OHL | E9: Clyde South
A10: Farigaig 132kV | B10: Dunmaglass 132kV | C10: 4km Cable | D10: 4km OHL | E10: Dunmaglass
A11: Coalburn 132kV | B11: Galawhistle 132kV | C11: 9.7km cable | D11: 9.7km OHL | E11: Galawhistle II
A12: Moffat 132kV | B12: Harestanes 132kV | C12: 15.33km cable | D12: 15.33km OHL | E12: Harestanes
A13: Coalburn 132kV | B13: Kype Muir 132kV | C13: 17km cable | D13: 17km OHL | E13: Kype Muir
A14: Coalburn 132kV | B14: Middle Muir 132kV | C14: 13km cable | D14: 13km OHL | E14: Middle Muir
A15: Melgarve 132kV | B15: Stronelairg 132kV | C15: 10km cable | D15: 10km OHL | E15: Stronelairg
A16: East Kilbride South 275kV | B16: Whitelee 275kV | C16: 6km of Cable | D16: 6km of OHL | E16: Whitelee
A17: East Kilbride South 275kV | B17: Whitelee Extension 275kV | C17: 16.68km of Cable | D17: 16.68km of OHL | E17: Whitelee Extension

Sheet T13
A1: Table 13 - Contracted and Modelled TEC | E1: Return to Index
A3: Generation (GW) | B3: 2019/20 Final Tariffs | C3: 2020/21 March | D3: 2020/21 July | E3: 2020/21 Draft | F3: 2020/21 Final
A4: Contracted TEC | B4: 80.6 | C4: 90.8 | D4: 84.3 | E4: 84.9
A5: Modelled Best View TEC | B5: 80.6 | C5: 82.6 | D5: 80.7 | E5: 84.9
A6: Chargeable TEC | B6: 73.3 | C6: 74.1 | D6: 71.8 | E6: 76

Sheet T14
A1: Table 14 - Interconnectors | G1: Return to Index
A3: Interconnector | B3: Site | C3: Interconnected System | D3: Generation Zone | E3: Transport Model (Generation MW) Peak | F3: Transport Model (Generation MW) Year Round | G3: Charging Base (Generation MW)
A4: IFA Interconnector | B4: Sellindge 400kV | C4: France | D4: 24 | E4: 0 | F4: 2000 | G4: 0
A5: ElecLink | B5: Sellindge 400kV | C5: France | D5: 24 | E5: 0 | F5: 1000 | G5: 0
A6: BritNed | B6: Grain 400kV | C6: Netherlands | D6: 24 | E6: 0 | F6: 1200 | G6: 0
A7: Belgium Interconnector (Nemo) | B7: Richborough 400kV | C7: Belgium | D7: 24 | E7: 0 | F7: 1020 | G7: 0
A8: East - West | B8: Connah's Quay 400kV | C8: Republic of Ireland | D8: 16 | E8: 0 | F8: 505 | G8: 0
A9: IFA2 Interconnector | B9: Chilling 400KV Substation | C9: France | D9: 26 | E9: 0 | F9: 1100 | G9: 0
A10: Moyle | B10: Auchencrosh 275kV | C10: Northern Ireland | D10: 10 | E10: 0 | F10: 637 | G10: 0
A11: NS Link | B11: Blyth | C11: Norway | D11: 13 | E11: 0 | F11: 1400 | G11: 0

Sheet T15
A1: Table 15 - Allowed Revenues | G1: Return to Index
A3: £m Nominal | B3: 2019/20 TNUoS Revenue | C3: 2020/21 TNUoS Revenue
B4: Jan 2019 Final | C4: ='T26-29'!D5 -> March Forecast | D4: ='T26-29'!E5 -> July Forecast | E4: ='T26-29'!F5 -> Nov Draft | F4: ='T26-29'!G5 -> Jan Final
A5: National Grid Electricity Transmission
A6: Price controlled revenue | B6: 1728.45043 | C6: 1782.388758 | D6: ='T26-29'!E23 -> 1777.6878 | E6: ='T26-29'!F23 -> 1705.263105
A7: Less income from connections | B7: 30.84607861 | C7: 31 | D7: ='T26-29'!E24+'T26-29'!E25 -> 31 | E7: ='T26-29'!F24+'T26-29'!F25 -> 31.27928693
A8: NGET Income from TNUoS | B8: =+B6-B7 -> 1697.604351 | C8: 1751.388758 | D8: 1746.6878 | E8: 1673.983818
A10: Scottish Power Transmission
A11: Price controlled revenue | B11: 392.24328 | C11: 381.6166053 | D11: ='T26-29'!I23 -> 379.687494 | E11: ='T26-29'!J23 -> 380.4228001
A12: Less income from connections | B12: 12.91448763 | C12: 12.87663392 | D12: ='T26-29'!I24 -> 12.87663392 | E12: ='T26-29'!J24 -> 12.37443392
A13: SPT Income from TNUoS | B13: =+B11-B12 -> 379.3287924 | C13: 368.7399714 | D13: 366.8108601 | E13: 368.0483662
A15: SHE Transmission
A16: Price controlled revenue | B16: 352.822 | C16: 361.6402 | D16: ='T26-29'!M23 -> 360.0394 | E16: ='T26-29'!N23 -> 369.3509276
A17: Less income from connections | B17: 3.4 | C17: 3.4 | D17: ='T26-29'!M24 -> 3.4 | E17: ='T26-29'!N24 -> 3.441875487
A18: SHE Income from TNUoS | B18: =+B16-B17 -> 349.422 | C18: 358.2402 | D18: 356.6394 | E18: 365.9090521
A20: National Grid Electricity System Operator
A21: Other Pass-through from TNUoS | B21: 28.79855048 | C21: 41.44455048 | D21: ='T26-29'!T6+'T26-29'!T7+'T26-29'!T9+'T26-29'!T11 -> 41.67291258 | E21: ='T26-29'!U6+'T26-29'!U7+'T26-29'!U9+'T26-29'!U11 -> 43.92968701
A23: Offshore (offset by IFA contribution) | B23: 382.2197058 | C23: 431.0063053 | D23: ='T26-29'!T10+'T26-29'!T8 -> 427.4477622 | E23: ='T26-29'!U10+'T26-29'!U8 -> 433.9138682
A24: Total to Collect from TNUoS | B24: =+B23+B22+B21+B18+B13+B8 -> 2837.3734 | C24: =+C23+C22+C21+C18+C13+C8 -> 2950.819785 | D24: =+D23+D22+D21+D18+D13+D8 -> 2939.258735 | E24: ='T26-29'!U17 -> 2885.784791

Sheet T16
A1: Table 16 - Generation and Demand Revenue Proportions | F1: Return to Index
C3: ='T13'!C3 -> 2020/21 March | D3: ='T13'!D3 -> 2020/21 July | E3: ='T13'!E3 -> 2020/21 Draft | F3: ='T13'!F3 -> 2020/21 Final
A4: CAPEC | B4: Limit on generation tariff (€/MWh) | C4: 2.5 | D4: 2.5 | E4: =D4 -> 2.5
A5: y | B5: Error Margin | C5: 0.16 | D5: =C5 -> 0.16 | E5: =D5 -> 0.16
A6: ER | B6: Exchange Rate (€/£) | C6: 1.119217191 | D6: =C6 -> 1.119217191 | E6: =D6 -> 1.119217191
A7: MAR | B7: Total Revenue (£m) | C7: 2950.819785 | D7: ='T15'!D24 -> 2939.258735 | E7: ='T15'!E24 -> 2885.784791
A8: GO | B8: Generation Output (TWh) | C8: 221.2222015 | D8: 199.820929 | E8: =D8 -> 199.820929
A9: G | B9: % of revenue from generation | C9: 0.1406665855 | D9: ='T18'!D4 -> 0.1275584334 | E9: ='T18'!E4 -> 0.1299217782
A10: D | B10: % of revenue from demand | C10: 0.8593334145 | D10: =1-D9 -> 0.8724415666 | E10: ='T18'!E5 -> 0.8700782218
A11: G.R | B11: Revenue recovered from generation (£m) | C11: 415.0817437 | D11: =D9*D7 -> 374.9272397 | E11: =E9*E7 -> 374.9262917
A12: D.R | B12: Revenue recovered from demand (£m) | C12: 2535.738042 | D12: =D10*D7 -> 2564.331495 | E12: =E10*E7 -> 2510.858499

Sheet T17
A1: Table 17 - Charging Bases | E1: Return to Index
A3: Charging Bases | B3: ='T13'!C3 -> 2020/21 March | C3: ='T13'!D3 -> 2020/21 July | D3: ='T13'!E3 -> 2020/21 Draft | E3: ='T13'!F3 -> 2020/21 Final
A4: Generation (GW) | B4: 74.11004 | C4: 71.81119 | D4: 76.07253
A5: NHH Demand (4pm-7pm TWh) | B5: 24.1250767 | C5: 24.31 | D5: 25.12641752
A6: Net Charging
A7: Total Average Net Triad (GW) | B7: 43.15603875 | C7: 43.17 | D7: 43.17
A8: HH Demand Average Net Triad (GW) | B8: 12.07332998 | C8: 11.98869 | D8: 10.88869774
A9: Gross charging
A10: Total Average Gross Triad (GW) | B10: 50.24716226 | C10: 50.4 | D10: 50.4
A11: HH Demand Average Gross Triad (GW) | B11: 19.16445348 | C11: 19.21869 | D11: 18.11869774
A12: Embedded Generation Export (GW) | B12: 7.091123507 | C12: 7.23 | D12: 7.23

Sheet T18
A1: Table 18 - Residual Calculation | F1: Return to Index
B3: Component | C3: ='T13'!C3 -> 2020/21 March | D3: ='T13'!D3 -> 2020/21 July | E3: ='T13'!E3 -> 2020/21 Draft | F3: ='T13'!F3 -> 2020/21 Final
A4: G | B4: Proportion of revenue recovered from generation (%) | C4: 0.1406665855 | D4: 0.1275584334 | E4: 0.1299217782
A5: D | B5: Proportion of revenue recovered from demand (%) | C5: 0.8593334145 | D5: 0.8724415666 | E5: 0.8700782218
A6: R | B6: Total TNUoS revenue (£m) | C6: 2950.819785 | D6: 2939.251303 | E6: 2885.784791
A7: Generation Residual
A8: RG | B8: Generator residual tariff (£/kW) | C8: -3.957023909 | D8: -4.533500131 | E8: -4.776900897
A9: ZG | B9: Revenue recovered from the wider locational element of generator tariffs (£m) | C9: 331.7083863 | D9: 326.3858437 | E9: 356.9289562
A10: O | B10: Revenue recovered from offshore local tariffs (£m) | C10: 339.1161936 | D10: 337.4468271 | E10: 343.5002406
A11: LG | B11: Revenue recovered from onshore local substation tariffs (£m) | C11: 19.39298487 | D11: 18.78965801 | E11: 19.98952674
A12: SG | B12: Revenue recovered from onshore local circuit tariffs (£m) | C12: 18.11937917 | D12: 17.86000216 | E12: 17.89850497
A13: BG | B13: Generator charging base (GW) | C13: 74.11004 | D13: 71.81119 | E13: 76.07253
A14: Gross Demand Residual
A15: RD | B15: Demand residual tariff (£/kW) | C15: 52.17858806 | D15: 52.53360661 | E15: 51.88147307
A16: ZD | B16: Revenue recovered from the locational element of demand tariffs (£m) | C16: -68.18313957 | D16: -66.16805904 | E16: -86.81162345
A17: EE | B17: Amount to be paid to Embedded Export Tariffs (£m) | C17: 17.9047997 | D17: 17.20070259 | E17: 17.15611967
A18: BD | B18: Demand Gross charging base (GW) | C18: 50.24716226 | D18: 50.4 | E18: 50.4

Sheet T19
A1: Table 19 - Small Generator Discount
A3: Small Generator Discount calculation
A4: Generator Residual (£/kW) | B4: G | C4: -4.776900897
A5: Demand Residual (£/kW) | B5: D | C5: 51.88147307
A6: Small Generator Discount (£/kW) | B6: T = (G + D)/4 | C6: 11.776143
A7: Forecast Small Generator Volume (kW) | B7: V | C7: 3228640
A8: 2019/20 Final SGD cost (£) | B8: V x T | C8: 38020926.34
A9: Prior year reconcilation (£) | B9: R | C9: -1164104.15
A10: Total SGD Cost (£) | B10: C = (V x T) - R | C10: 39185030.49
A11: Total System Triad Demand (kW) | B11: TD | C11: 50400000
A12: Total HH Triad Demand (kW) | B12: HHD | C12: 18118697.74
A13: Total NHH Consumption (kWh) | B13: NHHD | C13: 2.512641752e+10
A14: Increase in HH Demand tariff (£/kW) | B14: HHT = C/TD | C14: 0.7774807636
A15: Total Cost to HH Customers (£) | B15: HHC = HHT * HHD | C15: 14086938.95
A16: Increase in NHH Demand tariff (p/kWh) | B16: NHHT = (C - HHC)/NHHD | C16: 0.09988726609
A17: Total Cost to NHH Customers (£) | B17: NHHC = NHHT * NHHD | C17: 25098091.53

Sheet T20
A1: Table 20 - Summary of in flight CUSC modification proposals | E1: Return to Index
B4: Name | C4: Title | D4: Effect of proposed change | E4: Possible implementation
B5: CMP280 | C5: ‘Creation of a New Generator TNUoS Demand Tariff which Removes Liability for TNUoS Demand Residual Charges from Generation and Storage Users' | D5: Change the structure of demand TNUoS charges applied to storage and, potentially other generators. | E5: April 2021, if approved
B6: CMP286 | C6: Improving TNUoS Predictability through Increased Notice of the Target Revenue used in the TNUoS Tariff Setting Process v1 | D6: Fixes target revenue to be recovered from the TNUoS setting process earlier, to provide more stability to future tariffs. | E6: April 2021, if approved
B7: CMP287 | C7: Improving TNUoS Predictability Through Increased Notice of Inputs Used in the TNUoS Tariff Setting Process. | D7: Fixes parameters associated with the TNUoS setting process earlier, to provide more stability to future tariffs. | E7: April 2021, if approved
B8: CMP292 | C8: Introducing a Section 8 cut-off date for changes to the Charging Methodologies | D8: Introduces a cut off for changes to the charging methodologies to bring more stability and predictability to following years’ charges | E8: September 2020, If approved
B9: CMP301 | C9: Clarification on the treatment of project costs associated with HVDC and subsea circuits | D9: Clarification of the legal text to ensure that it is clear that AC substation costs are not included in the circuit expansion factor calculation for HVDC and subsea circuits. We already calculate in this manner. | E9: Implemented, No impact on charges
B10: CMP303 | C10: Improving local circuit charge cost-reflectivity | D10: Remove some of the cost of the HVDC and subsea circuits from the calculation of the local circuit, reducing the local circuit tariffs for these circuits. | E10: April 2020, no immediate impact on charges
B11: CMP306 | C11: Align annual connection charge rate of return at CUSC 14.3.21 to price control cost of capital | D11: Potentially reduce the 2021/22 TNUoS revenue by less than £20m due to a one-off adjustment | E11: April 2021 if approved
B12: CMP310 | C12: CUSC section 14 changes in the event the UK leaves the EU without an agreement | D12: Modify existing references to EU regulations to reflect the changes as foreseen in the relevant Statutory Instruments. | E12: As soon as practicable following UK’s exit from the EU, in the event no agreement is in place
B13: CMP315 | C13: Review of the expansion constant | D13: Review how the expansion constant is determined such that it best reflects the costs involved | E13: If approved, implemention fom the first complete charging year
B14: CMP316 | C14: TNUoS Arrangements for Co-located Generation Sites | D14: Develop a cost-reflective TNUoS arrangement for generation sites with multiple technology types | E14: April 2021, if approved
B15: CMP317 | C15: Identification and exclusion of Assets Required for Connection when setting TNUoS charges | D15: Removal of revenue linked to “generator only spurs” from the calculation of generation revenue cap under the EU rules. | E15: TBC, phased implementation if approved
B16: CMP324 & CMP325 | C16: Generation Re-zoning | D16: Revise TNUoS generation zoning methodology | E16: April 2021, if approved
B17: Future CMP | C17: Implementation of TCR Decision - TDR | D17: Establish NHH locational methodology, allocate residual between HH/NHH, create charging 'bands' | E17: April 2021, if approved
B18: Future CMP | C18: Implementation of TCR Decision - TGR | D18: Removing TGR subject to compliance with cap/collar | E18: April 2021, if approved

Sheet T21
A1: Table 21 - Demand HH Locational Tariffs | G1: Return to Index
A5: Demand Zone | C5: ='T18'!D3 -> 2020/21 July | D5: 2019/20 April | E5: ='T18'!E3 -> 2020/21 Draft | F5: 2019/20 June (£/kW) | G5: Changes
C6: Peak (£/kW) | D6: Year Round (£/kW) | E6: Peak (£/kW) | F6: Year Round (£/kW) | G6: Peak (£/kW) | H6: Year Round (£/kW)
A7: 1 | B7: Northern Scotland | C7: -2.224713422 | D7: -26.94946131 | E7: -2.181691198 | F7: -28.43779971 | G7: 0.04302222345 | H7: -1.488338407
A8: 2 | B8: Southern Scotland | C8: -2.048723344 | D8: -18.78126158 | E8: -2.146788292 | F8: -20.83575035 | G8: -0.09806494733 | H8: -2.054488766
A9: 3 | B9: Northern | C9: -3.41794696 | D9: -7.23864741 | E9: -3.619288431 | F9: -8.096369783 | G9: -0.2013414713 | H9: -0.8577223727
A10: 4 | B10: North West | C10: -0.9934473449 | D10: -2.629492218 | E10: -1.690502019 | F10: -3.369425282 | G10: -0.6970546737 | H10: -0.7399330635
A11: 5 | B11: Yorkshire | C11: -2.521422431 | D11: -0.8657031079 | E11: -2.525793593 | F11: -1.373597257 | G11: -0.004371161871 | H11: -0.5078941487
A12: 6 | B12: N Wales & Mersey | C12: -1.896626446 | D12: -0.1049278383 | E12: -1.841013772 | F12: -0.9876105149 | G12: 0.05561267443 | H12: -0.8826826766
A13: 7 | B13: East Midlands | C13: -2.112883421 | D13: 2.258876094 | E13: -2.244514303 | F13: 1.90000515 | G13: -0.1316308822 | H13: -0.3588709444
A14: 8 | B14: Midlands | C14: -1.7452255 | D14: 3.185647508 | E14: -1.927184573 | F14: 2.843770687 | G14: -0.1819590724 | H14: -0.3418768209
A15: 9 | B15: Eastern | C15: 1.498903252 | D15: 0.5294984303 | E15: 1.390004909 | F15: 0.3669721908 | G15: -0.1088983438 | H15: -0.1625262395
A16: 10 | B16: South Wales | C16: -6.773399226 | D16: 4.2749971 | E16: -6.027019452 | F16: 4.908019542 | G16: 0.7463797745 | H16: 0.6330224413
A17: 11 | B17: South East | C17: 3.98566206 | D17: 0.4142890641 | E17: 3.908384393 | F17: 0.8633757745 | G17: -0.07727766631 | H17: 0.4490867104
A18: 12 | B18: London | C18: 5.885575132 | D18: 1.970272169 | E18: 5.77880145 | F18: 1.759382146 | G18: -0.1067736812 | H18: -0.2108900231
A19: 13 | B19: Southern | C19: 1.692799577 | D19: 4.105954747 | E19: 1.975370475 | F19: 4.067541269 | G19: 0.2825708988 | H19: -0.03841347782
A20: 14 | B20: South Western | C20: -1.243174859 | D20: 5.210265678 | E20: -0.4662805547 | F20: 5.756832194 | G20: 0.7768943045 | H20: 0.5465665152

Sheet T22
A1: Table 22 - Breakdown of the Embedded Export Tariff | L1: Return to Index
A3: Demand Zone | C3: 2020/21 July | F3: 2020/21 Draft | I3: Changes
C4: Locational (£/kW) | D4: AGIC (£/kW) | E4: Phased Residual (£/kW) | F4: Locational (£/kW) | G4: AGIC (£/kW) | H4: Phased Residual (£/kW) | I4: Locational (£/kW) | J4: AGIC (£/kW) | K4: Phased Residual (£/kW)
A5: 1 | B5: Northern Scotland | C5: -29.17417473 | D5: 3.427086 | E5: 0 | F5: -30.61949091 | G5: 3.416495 | H5: 0 | I5: =F5-C5 -> -1.445316184 | J5: =G5-D5 -> -0.010591 | K5: 0
A6: 2 | B6: Southern Scotland | C6: -20.82998493 | D6: 3.427086 | E6: 0 | F6: -22.98253864 | G6: 3.416495 | H6: 0 | I6: =F6-C6 -> -2.152553713 | J6: =G6-D6 -> -0.010591 | K6: =H6-E6 -> 0
A7: 3 | B7: Northern | C7: -10.65659437 | D7: 3.427086 | E7: 0 | F7: -11.71565821 | G7: 3.416495 | H7: 0 | I7: -1.059063844 | J7: -0.010591 | K7: 0
A8: 4 | B8: North West | C8: -3.622939563 | D8: 3.427086 | E8: 0 | F8: -5.059927301 | G8: 3.416495 | H8: 0 | I8: -1.436987737 | J8: -0.010591 | K8: 0
A9: 5 | B9: Yorkshire | C9: -3.387125539 | D9: 3.427086 | E9: 0 | F9: -3.899390849 | G9: 3.416495 | H9: 0 | I9: -0.5122653106 | J9: -0.010591 | K9: 0
A10: 6 | B10: N Wales & Mersey | C10: -2.001554285 | D10: 3.427086 | E10: 0 | F10: -2.828624287 | G10: 3.416495 | H10: 0 | I10: -0.8270700022 | J10: -0.010591 | K10: 0
A11: 7 | B11: East Midlands | C11: 0.1459926733 | D11: 3.427086 | E11: 0 | F11: -0.3445091533 | G11: 3.416495 | H11: 0 | I11: -0.4905018266 | J11: -0.010591 | K11: 0
A12: 8 | B12: Midlands | C12: 1.440422007 | D12: 3.427086 | E12: 0 | F12: 0.9165861141 | G12: 3.416495 | H12: 0 | I12: -0.5238358933 | J12: -0.010591 | K12: 0
A13: 9 | B13: Eastern | C13: 2.028401683 | D13: 3.427086 | E13: 0 | F13: 1.756977099 | G13: 3.416495 | H13: 0 | I13: -0.2714245833 | J13: -0.010591 | K13: 0
A14: 10 | B14: South Wales | C14: -2.498402126 | D14: 3.427086 | E14: 0 | F14: -1.11899991 | G14: 3.416495 | H14: 0 | I14: 1.379402216 | J14: -0.010591 | K14: 0
A15: 11 | B15: South East | C15: 4.399951124 | D15: 3.427086 | E15: 0 | F15: 4.771760168 | G15: 3.416495 | H15: 0 | I15: 0.3718090441 | J15: -0.010591 | K15: 0
A16: 12 | B16: London | C16: 7.855847301 | D16: 3.427086 | E16: 0 | F16: 7.538183597 | G16: 3.416495 | H16: 0 | I16: -0.3176637044 | J16: -0.010591 | K16: 0
A17: 13 | B17: Southern | C17: 5.798754324 | D17: 3.427086 | E17: 0 | F17: 6.042911745 | G17: 3.416495 | H17: 0 | I17: 0.244157421 | J17: -0.010591 | K17: 0
A18: 14 | B18: South Western | C18: 3.967090819 | D18: 3.427086 | E18: 0 | F18: 5.290551639 | G18: 3.416495 | H18: 0 | I18: 1.32346082 | J18: -0.010591 | K18: 0

Sheet T23
A1: Table 23 - Demand Profiles | H1: Return to Index
A3: Zone | B3: Zone Name | C3: 2020/21 July | H3: 2020/21 Draft
C4: Locational Model Demand (MW) | D4: GROSS Tariff model Peak Demand (MW) | E4: GROSS Tariff Model HH Demand (MW) | F4: Tariff model NHH Demand (TWh) | G4: Tariff model Embedded Export (MW) | H4: Locational Model Demand (MW) | I4: GROSS Tariff model Peak Demand (MW) | J4: GROSS Tariff Model HH Demand (MW) | K4: Tariff model NHH Demand (TWh) | L4: Tariff model Embedded Export (MW)
A5: 1 | B5: Northern Scotland | C5: 362.4734783 | D5: 1470 | E5: 441.41 | F5: 0.76 | G5: 1330 | H5: 266.12454 | I5: 1470 | J5: 416.1411146 | K5: 0.7839629256 | L5: 1330
A6: 2 | B6: Southern Scotland | C6: 2643.981734 | D6: 3360 | E6: 1229.38 | F6: 1.66 | G6: 870 | H6: 2398.995441 | I6: 3360 | J6: 1159.01158 | K6: 1.716104001 | L6: 870
A7: 3 | B7: Northern | C7: 2648.876743 | D7: 2510 | E7: 1041.39 | F7: 1.18 | G7: 470 | H7: 2031 | I7: 2510 | J7: 981.7868588 | K7: 1.215598599 | L7: 470
A8: 4 | B8: North West | C8: 3168.933488 | D8: 3950 | E8: 1459.11 | F8: 1.94 | G8: 380 | H8: 2869 | I8: 3950 | J8: 1375.594166 | K8: 2.003092273 | L8: 380
A9: 5 | B9: Yorkshire | C9: 4387.658401 | D9: 3770 | E9: 1581.76 | F9: 1.77 | G9: 710 | H9: 3984 | I9: 3770 | J9: 1491.230816 | K9: 1.828102033 | L9: 710
A10: 6 | B10: N Wales & Mersey | C10: 2393.690698 | D10: 2570 | E10: 1035.12 | F10: 1.23 | G10: 580 | H10: 2788 | I10: 2570 | J10: 975.8713725 | K10: 1.27458562 | L10: 580
A11: 7 | B11: East Midlands | C11: 5295.75 | D11: 4590 | E11: 1777.9 | F11: 2.2 | G11: 550 | H11: 5279 | I11: 4590 | J11: 1676.139697 | K11: 2.271369904 | L11: 550
A12: 8 | B12: Midlands | C12: 4409.82 | D12: 4170 | E12: 1585.22 | F12: 1.99 | G12: 240 | H12: 4433 | I12: 4170 | J12: 1494.485361 | K12: 2.0592835 | L12: 240
A13: 9 | B13: Eastern | C13: 6097.281418 | D13: 6340 | E13: 2088.5 | F13: 3.11 | G13: 610 | H13: 5601 | I13: 6340 | J13: 1968.964669 | K13: 3.216395991 | L13: 610
A14: 10 | B14: South Wales | C14: 1666.222402 | D14: 1780 | E14: 802.83 | F14: 0.84 | G14: 380 | H14: 1604 | I14: 1780 | J14: 756.8798456 | K14: 0.8706431351 | L14: 380
A15: 11 | B15: South East | C15: 3813.095307 | D15: 3830 | E15: 1162.67 | F15: 1.92 | G15: 330 | H15: 3194 | I15: 3830 | J15: 1096.128038 | K15: 1.986800418 | L15: 330
A16: 12 | B16: London | C16: 5379.574916 | D16: 4120 | E16: 2232.34 | F16: 1.82 | G16: 120 | H16: 5056 | I16: 4120 | J16: 2104.572852 | K16: 1.879221647 | L16: 120
A17: 13 | B17: Southern | C17: 6219.676552 | D17: 5390 | E17: 2042.68 | F17: 2.59 | G17: 390 | H17: 7178 | I17: 5390 | J17: 1925.768925 | K17: 2.676176544 | L17: 390
A18: 14 | B18: South Western | C18: 2244.394532 | D18: 2550 | E18: 738.38 | F18: 1.3 | G18: 270 | H18: 2151 | I18: 2550 | J18: 696.1224439 | K18: 1.345080934 | L18: 270
A19: Total | C19: 50731.42967 | D19: 50400 | E19: 19218.69 | F19: 24.31 | G19: 7230 | H19: 48833.11998 | I19: 50400 | J19: 18118.69774 | K19: 25.12641752 | L19: 7230

Sheet T24
A1: Table 24 - Generic Annual Load Factors | E1: Return to Index
A4: Technology | B4: Generic ALF
A5: Gas_Oil | B5: 0.003935
A6: Pumped_Storage | B6: 0.102893
A7: Tidal | B7: 0.189
A8: Biomass | B8: 0.398387
A9: Wave | B9: 0.31
A10: Onshore_Wind | B10: 0.35666
A11: CCGT_CHP | B11: 0.50947
A12: Hydro | B12: 0.417886
A13: Offshore_Wind | B13: 0.483204
A14: Coal | B14: 0.277372
A15: Nuclear | B15: 0.775645

Sheet T25
A1: Table 25 - Generation Contracted TEC Changes | E1: Return to Index
A4: Power Station | B4: MW Change | C4: Node | D4: Generation Zone
A5: Aikengall II Windfarm | B5: -76.2 | C5: WDOD10 | D5: 11
A6: Aikengall IIa Wind Farm | B6: 81.2 | C6: WDOD10 | D6: 11
A7: Bad a Cheo Wind Farm | B7: -3.25 | C7: MYBS11 | D7: 1
A8: BP Grangemouth (correction) | B8: -120 | C8: GRMO20 | D8: 9
A9: Bramford | B9: -49.9 | C9: BRFO40 | D9: 18
A10: Enfield | B10: 27 | C10: BRIM2A_LPN | D10: 24
A11: Ffestiniog | B11: 360 | C11: FFES20 | D11: 16
A12: Halsary Wind Farm | B12: 28.5 | C12: SPIT10 | D12: 1
A13: Keadby II | B13: 41 | C13: KEAD40 | D13: 16
A14: Spalding Energy Expansion (correction) | B14: 299.99 | C14: SPLN40 | D14: 17

Sheet T26-29
A1: Table 26-29 - Revenue Breakdown | H1: Return to Index
A3: 2020/21 Revenue | C3: Licence Term | D3: National Grid Electricity Transmission | H3: Scottish Power Transmission | L3: SHE Transmission | S3: NGESO TNUoS Other Pass-Through
A4: Description | P4: Notes
A5: Regulatory Year | D5: March Forecast | E5: July Forecast | F5: Nov Draft | G5: Jan Final | H5: March Forecast | I5: July Forecast | J5: Nov Draft | K5: Jan Final | L5: March Forecast | M5: July Forecast | N5: Nov Draft | O5: Jan Final | R5: Term | S5: March Forecast | T5: July Forecast | U5: Nov Draft | V5: Jan Final
A6: Opening Base Revenue Allowance (2009/10 prices) | B6: A1 | C6: PUt | D6: =E6 -> 1571.584 | E6: 1571.584 | F6: 1571.584 | H6: 254.238 | I6: =H6 -> 254.238 | J6: 254.238 | L6: 122.5 | M6: =L6 -> 122.5 | N6: 122.525 | P6: Office of National Statistics | R6: Embedded Offshore Pass-Through (OFETt) | S6: =T6 -> 0.5754779204 | T6: 0.5754779204 | U6: =T6 -> 0.5754779204
A7: Price Control Financial Model Iteration Adjustment | B7: A2 | C7: MODt | D7: =E7 -> -338.3271322 | E7: -338.3271322 | F7: -379.1704543 | H7: -7.43887861 | I7: =H7 -> -7.43887861 | J7: -6.288839799 | L7: 79.155 | M7: =L7-0.655 -> 78.5 | N7: 85.003 | P7: Bank of England Base Rate | R7: Network Innovation Competition (NICFt) | S7: =T7 -> 31.58627 | T7: 31.58627 | U7: =T7 -> 31.58627
A8: RPI True Up | B8: A3 | C8: TRUt | D8: 1.04802269 | E8: 1.04802269 | F8: -1.049654332 | H8: 0.6746338106 | I8: =H8 -> 0.6746338106 | J8: -0.2258823042 | L8: -0.9 | M8: =L8 -> -0.9 | N8: -0.2087274897 | P8: From Licence | R8: Interconnectors Cap&Floor Revenue Adjustment (TICFt) | S8: -10.8 | T8: -10.8 | U8: -12.3
A9: RPI Forecast | B9: A4 | C9: RPIFt | D9: 1.399006042 | E9: 1.394 | F9: 1.387 | H9: 1.402 | I9: =E9 -> 1.394 | J9: 1.387 | L9: 1.397 | M9: =E9 -> 1.394 | N9: =F9 -> 1.387 | P9: Forecast | R9: ESO Network Innovation Allowance (NIAt) | S9: 3 | T9: 3.211164663 | U9: 2.974359091
A10: Base Revenue [A=(A1+A2+A3)*A4] | B10: A | C10: BRt | D10: =SUM(D6:D8)*D9 -> 1726.8 | E10: =SUM(E6:E8)*E9 -> 1720.621017 | F10: =SUM(F6:F8)*F9 -> 1652.421717 | H10: =SUM(H6:H8)*H9 -> 346.9582048 | I10: =SUM(I6:I8)*I9 -> 344.9784147 | J10: =SUM(J6:J8)*J9 -> 343.5921864 | L10: =SUM(L6:L8)*L9 -> 280.454735 | M10: =SUM(M6:M8)*M9 -> 278.9394 | N10: =SUM(N6:N8)*N9 -> 287.551831 | P10: Forecast | R10: Offshore Transmission Revenue (OFTOt) | S10: 441.8063053 | T10: 438.2477622 | U10: 446.2138682
A11: Pass-Through Business Rates & Licence fee | B11: B1+B3 | C11: RBt+LFt | D11: =E11 -> 26.32098312 | E11: 26.32098312 | F11: 40.2635942 | H11: 4.2464688 | I11: =H11 -> 4.2464688 | J11: 4.32420924 | L11: 26 | M11: =L11 -> 26 | N11: 25.90918005 | P11: Using HM Treasury Forecast | R11: Financial facility (FINt) | S11: 6.3 | T11: 6.3 | U11: =-1*F22 -> 8.79358
A12: Temporary Physical Disconnection | B12: B2 | C12: TPDt | D12: =E12 -> 0 | E12: 0 | F12: 1.565862798 | H12: 0 | I12: =H12 -> 0 | J12: 0 | L12: 0 | M12: =L12 -> 0 | N12: 0.00678070449 | R12: Site Specific Charges Discrepancy (DISt) | U12: 0
A13: Inter TSO Compensation | B13: B4 | C13: ITCt | D13: 0 | E13: 0 | F13: -2.687610403 | P13: Forecast | R13: Termination Sums (TSt) | U13: 0
A14: Pass-Through Items [B=B1+B2+B3+B4+B5+B6+B7+B8+B9+B10] | B14: B | C14: PTt | D14: =SUM(D11:D13) -> 26.32098312 | E14: =SUM(E11:E13) -> 26.32098312 | F14: =SUM(F11:F13) -> 39.1418466 | H14: =SUM(H11:H13) -> 4.2464688 | I14: =SUM(I11:I13) -> 4.2464688 | J14: =SUM(J11:J13) -> 4.32420924 | L14: =SUM(L11:L13) -> 26 | M14: =SUM(M11:M13) -> 26 | N14: =SUM(N11:N13) -> 25.91596075 | P14: Forecast | R14: NGET revenue pas-through (NGETTOt) | S14: =D26 -> 1751.396216 | T14: =E26 -> 1746.6878 | U14: =F26 -> 1673.983818
A15: Financial Incentive for Timely Connections Output | B15: C5 | C15: -CONADJt | J15: 0 | N15: 0 | R15: SPT revenue pass-through (TSPt) | S15: =H26 -> 368.7406501 | T15: =I26 -> 366.8108601 | U15: =J26 -> 368.0483662
A16: Reliability Incentive Adjustment, stakeholder Satisfaction Adjustment and SF6 Gas Emission Adjustment | B16: C1+C2+C3 | C16: RIt+SSOt+SFIt | D16: =E17 -> 15.89113505 | E16: =E17 -> 15.89113505 | F16: 17.41249141 | H16: 2.550966837 | I16: =H16+0.05 -> 2.600966837 | J16: 5.194875034 | L16: 1.9 | M16: =L16 -> 1.9 | N16: 2.799064868 | P16: Forecast | R16: SHETL revenue pass-through (TSHt) | S16: =L26 -> 358.154735 | T16: =M26 -> 356.6394 | U16: =N26 -> 365.9090521
A17: Outputs Incentive Revenue [C=C1+C2+C3] | B17: C | C17: OIPt | D17: =E17 -> 15.89113505 | E17: 15.89113505 | F17: =F16 -> 17.41249141 | H17: =H16 -> 2.550966837 | I17: =I16 -> 2.600966837 | J17: =SUM(J15:J16) -> 5.194875034 | L17: =L16 -> 1.9 | M17: =M16 -> 1.9 | N17: =N16 -> 2.799064868 | P17: Forecast | R17: Total | S17: =SUM(S6:S16) -> 2950.759655 | T17: =SUM(T6:T16) -> 2939.258735 | U17: =SUM(U6:U16) -> 2885.784791
A18: Network Innovation Allowance | B18: D | C18: NIAt | D18: 6.3 | E18: 7.770566438 | F18: 7.425175453 | H18: 1.08 | I18: =H18 -> 1.08 | J18: 1.08 | L18: 0.9 | M18: =L18 -> 0.9 | N18: 0.9 | P18: Forecast
A19: Future Environmental Discretionary Rewards | B19: F | C19: EDRt | D19: 0 | E19: 0 | F19: 0.4027166439 | H19: 0.503506125 | I19: =H19 -> 0.503506125 | J19: 0 | L19: 0 | M19: =L19 -> 0 | N19: 0
A20: Transmission Investment for Renewable Generation | B20: G | C20: TIRGt | D20: 0 | E20: 0 | F20: =E20 -> 0 | H20: 26.27780938 | I20: 26.27780938 | J20: 33.00554022 | L20: 82.3 | M20: 82.3 | N20: 82.38152915 | P20: Forecast
A21: Correction Factor | B21: -K | C21: -K | D21: 13.38409805 | E21: 13.38409805 | F21: -2.74726282 | H21: 0.000328096287 | I21: 0.000328096287 | J21: -6.774010835 | L21: -30 | M21: -30 | N21: -30.19745812
A22: Financial Facility | B22: FINt | D22: =-S11 -> -6.3 | E22: =-T11 -> -6.3 | F22: =-6.34*F9 -> -8.79358
A23: Maximum Revenue [M= A+B+C+D+E+F+G+H+I+K] | B23: M | C23: TOt | D23: =D10+D14+D17+D18+D19+D20+D21+D22 -> 1782.396216 | E23: =E10+E14+E17+E18+E19+E20+E21+E22 -> 1777.6878 | F23: =F10+F14+F17+F18+F19+F20+F21+F22 -> 1705.263105 | H23: =H10+H14+H17+H18+H19+H20+H21 -> 381.617284 | I23: =I10+I14+I17+I18+I19+I20+I21 -> 379.687494 | J23: =J10+J14+J17+J18+J19+J20+J21 -> 380.4228001 | L23: =L10+L14+L17+L18+L19+L20+L21 -> 361.554735 | M23: =M10+M14+M17+M18+M19+M20+M21 -> 360.0394 | N23: =N10+N14+N17+N18+N19+N20+N21 -> 369.3509276 | P23: Forecast
A24: Pre-vesting connection charges | B24: S1 | D24: 30.3 | E24: 30.3 | F24: =30684968.88/1000000 -> 30.68496888 | H24: 12.87663392 | I24: =H24 -> 12.87663392 | J24: 12.37443392 | L24: 3.4 | M24: =L24 -> 3.4 | N24: 3.441875487 | P24: Forecast
A25: Rental Site | B25: S2 | D25: 0.7 | E25: 0.7 | F25: =594318.05/1000000 -> 0.59431805
A26: TNUoS Collected Revenue [T=M-B5-P] | B26: T | D26: =D23-D24-D25 -> 1751.396216 | E26: =E23-E24-E25 -> 1746.6878 | F26: =F23-F24-F25 -> 1673.983818 | H26: =H23-H24 -> 368.7406501 | I26: =I23-I24 -> 366.8108601 | J26: =J23-J24 -> 368.0483662 | L26: =L23-L24 -> 358.154735 | M26: =M23-M24 -> 356.6394 | N26: =N23-N24 -> 365.9090521 | P26: Forecast
A33: Notes
A34: All monies are nominal 'money of the day' prices unless stated otherwise | I34: Total | J34: =E26+I26+M26+SUM(T6:T11) -> 2939.258735
A35: Licensee forecasts and budgets are subject to change especially where they are influenced by external stakeholders
A36: Greyed out cells are either calculated or not applicable in the year concerned due to the way the licence formula are constructed
A37: NIC payments are listed separately, as they do not form part of TOs Maximum Revenue
A39: Commentary
A40: All reasonable care has been taken in the preparation of these illustrative tables and the data therein.
A41: TOs offer this data without prejudice and cannot be held responsible for any loss that might be attributed to the use of this data.
A42: TOs do not accept or assume responsibility for the use of this information by any person or any person to whom this information is shown or any person to whom this information otherwise becomes available.
A44: This forecast contains as much information as can be currently made available.
A47: This respects commercial confidentiality and disclosure considerations.
A49: All £ figures are in money of the day
A51: Information provided in £m to one decimal place

Sheet T30
A1: Table 30 - Offshore Revenues | I1: Return to Index
A3: Offshore Transmission Revenue Forecast (£m) | B3: 2019-11-26
I4: Notes
A5: Regulatory Year | B5: 2014/15 | C5: 2015/16 | D5: 2016/17 | E5: 2017/18 | F5: 2018/19 | G5: 2019/20 | H5: 2020/21
A6: Barrow | B6: 5.475948387 | C6: 5.605119166 | D6: 5.656283019 | E6: 5.872496367 | F6: 6.250052539 | G6: 6.437679531 | H6: 6.56792949 | I6: Current revenues plus indexation
A7: Gunfleet | B7: 6.853152423 | C7: 7.014459018 | D7: 7.080594599 | E7: 7.432422281 | F7: 7.801752691 | G7: 8.077503308 | H7: 8.182090864 | I7: Current revenues plus indexation
A8: Walney 1 | B8: 12.49105951 | C8: 12.78636456 | D8: 12.90184157 | E8: 13.13609825 | F8: 13.60716746 | G8: 14.66479765 | H8: 15.11786486 | I8: Current revenues plus indexation
A9: Robin Rigg | B9: 7.709472064 | C9: 7.891440662 | D9: 7.993308366 | E9: 8.367306563 | F9: 8.748852974 | G9: 9.125641443 | H9: 9.205580641 | I9: Current revenues plus indexation
A10: Walney 2 | B10: 12.92696073 | C10: 13.23221075 | D10: 12.51589741 | E10: 12.29931316 | F10: 16.32580671 | G10: 14.54601197 | H10: 14.93111511 | I10: Current revenues plus indexation
A11: Sheringham Shoal | B11: 18.92412411 | C11: 19.49893387 | D11: 19.72766462 | E11: 20.02531234 | F11: 20.74277833 | G11: 21.42054126 | H11: 22.92544381 | I11: Current revenues plus indexation
A12: Ormonde | B12: 11.57050189 | C12: 11.84309117 | D12: 11.95215008 | E12: 12.15604428 | F12: 12.59369632 | G12: 13.94408723 | H12: 13.8369344 | I12: Current revenues plus indexation
A13: Greater Gabbard | B13: 25.9995199 | C13: 26.61925023 | D13: 26.87143257 | E13: 27.3092326 | F13: 28.3875676 | G13: 29.31557302 | H13: 31.58819893 | I13: Current revenues plus indexation
A14: London Array | B14: 37.57295282 | C14: 39.2120985 | D14: 39.49870272 | E14: 39.51888334 | F14: 41.77261774 | G14: 43.29040895 | H14: 44.18012027 | I14: Current revenues plus indexation
A15: Thanet | B15: 78.85668167 | C15: 17.51705273 | D15: 15.69984448 | E15: 19.5121928 | F15: 18.62320211 | G15: 19.18120656 | H15: 19.67143616 | I15: Current revenues plus indexation
A16: Lincs | C16: 25.56339384 | D16: 26.68704214 | E16: 27.18814554 | F16: 28.16936445 | G16: 29.21644361 | H16: 29.51861652 | I16: Current revenues plus indexation
A17: Gwynt y mor | C17: 26.28358513 | D17: 23.6461166 | E17: 29.34287447 | F17: 32.73080929 | G17: 33.98287135 | H17: 19.7905147 | I17: Current revenues plus indexation
A18: West of Duddon Sands | C18: 35.2899996 | D18: 21.27389291 | E18: 22.04538798 | F18: 22.57265006 | G18: 23.57897363 | H18: 22.14737738 | I18: Current revenues plus indexation
A19: Humber Gateway | D19: 29.28454151 | E19: 9.749899087 | F19: 12.14541511 | G19: 12.47812448 | H19: 12.37029579 | I19: Current revenues plus indexation
A20: Westermost Rough | E20: 11.57669261 | F20: 13.19733993 | G20: 13.56403388 | H20: 13.88899037 | I20: Current revenues plus indexation
A21: Burbo Bank | F21: 34.27592625 | G21: 13.06016509 | H21: 12.76150556 | I21: Current revenues plus indexation
A22: Dudgeon | G22: 18.69643663 | H22: 19.51131785 | I22: Current revenues plus indexation
A23: Race Bank | G23: 66.01620616 | H23: 26.68973784 | I23: Current revenues plus indexation
A24: Forecast to asset transfer to OFTO in 2019/20 | H24: 37.57118443 | I24: National Grid Forecast
A25: Forecast to asset transfer to OFTO in 2020/21 | H25: 65.75761315 | I25: National Grid Forecast
A26: Offshore Transmission Pass-Through (B7) | B26: =SUM(B6:B25) -> 218.3803735 | C26: 248.3569992 | D26: 260.7893126 | E26: 265.5323017 | F26: 317.9449996 | G26: =SUM(G6:G25) -> 390.5967058 | H26: 446.2138682
A29: Notes:
A30: Figures for historic years represent National Grid's forecast of OFTO revenues at the time final tariffs were calculated for each charging year rather than our current best view.
A31: Licensee forecasts and budgets are subject to change especially where they are influenced by external stakeholders
A32: Greyed out cells are either calculated or not applicable in the year concerned due to the way the licence formula are constructed
A33: NIC payments are not included as they do not form part of OFTO Maximum Revenue

Sheet T31
A1: Table 31 - Specific Annual Load Factors | L1: Return to Index
A5: Power Station | B5: Technology | C5: Yearly Load Factor Source | H5: Yearly Load Factor Value | M5: Specific ALF
C6: 2014 | D6: 2015 | E6: 2016 | F6: 2017 | G6: 2018 | H6: 2014 | I6: 2015 | J6: 2016 | K6: 2017 | L6: 2018
A7: ABERDEEN | B7: Offshore_Wind | C7: Generic | D7: Generic | E7: Generic | F7: Generic | G7: Partial | H7: 0 | I7: 0 | J7: 0 | K7: 0 | L7: 0.4477447476 | M7: 0.471384
A8: ABERTHAW | B8: Coal | C8: Actual | D8: Actual | E8: Actual | F8: Actual | G8: Actual | H8: 0.5900433092 | I8: 0.5426112839 | J8: 0.5083352194 | K8: 0.05074202856 | L8: 0.04198683755 | M8: 0.36723
A9: ACHRUACH | B9: Onshore_Wind | C9: Generic | D9: Partial | E9: Actual | F9: Actual | G9: Actual | H9: 0 | I9: 0.3364635778 | J9: 0.3671402756 | K9: 0.4434639004 | L9: 0.4220045582 | M9: 0.41087
A10: AFTON | B10: Onshore_Wind | C10: Generic | D10: Generic | E10: Generic | F10: Partial | G10: Actual | H10: 0 | I10: 0 | J10: 0 | K10: 0.3487383632 | L10: 0.3737128858 | M10: 0.359704
A11: AIKENGALL II | B11: Onshore_Wind | C11: Generic | D11: Generic | E11: Generic | F11: Partial | G11: Actual | H11: 0 | I11: 0 | J11: 0 | K11: 0.3350824709 | L11: 0.2244594374 | M11: 0.305401
A12: AN SUIDHE | B12: Onshore_Wind | C12: Actual | D12: Actual | E12: Actual | F12: Actual | G12: Actual | H12: 0.3694215748 | I12: 0.3549000488 | J12: 0.340938019 | K12: 0.4123231067 | L12: 0.3629453179 | M12: 0.362422
A13: ARECLEOCH | B13: Onshore_Wind | C13: Actual | D13: Actual | E13: Actual | F13: Actual | G13: Actual | H13: 0.2972982186 | I13: 0.3686121896 | J13: 0.1972460256 | K13: 0.3517281723 | L13: 0.306826507 | M13: 0.318618
A14: BAD A CHEO | B14: Onshore_Wind | C14: Generic | D14: Generic | E14: Generic | F14: Generic | G14: Partial | H14: 0 | I14: 0 | J14: 0 | K14: 0 | L14: 0.2155383667 | M14: 0.309619
A15: BAGLAN BAY | B15: CCGT_CHP | C15: Actual | D15: Actual | E15: Actual | F15: Actual | G15: Actual | H15: 0.3791941198 | I15: 0.2912280794 | J15: 0.5520302485 | K15: 0.242890576 | L15: 0.1773899558 | M15: 0.304438
A16: BARROW | B16: Offshore_Wind | C16: Actual | D16: Actual | E16: Actual | F16: Actual | G16: Actual | H16: 0.4702314777 | I16: 0.4717913757 | J16: 0.4425840018 | K16: 0.470417396 | L16: 0.3902916933 | M16: 0.461078
A17: BARRY | B17: CCGT_CHP | C17: Actual | D17: Actual | E17: Partial | F17: Actual | G17: Actual | H17: 0.004002535533 | I17: 0.0217268588 | J17: 0.2434681007 | K17: 0.005406784222 | L17: 0.0003679626931 | M17: 0.010379
A18: BEATRICE | B18: Offshore_Wind | C18: Generic | D18: Generic | E18: Generic | F18: Generic | G18: Partial | H18: 0 | I18: 0 | J18: 0 | K18: 0 | L18: 0.5185379673 | M18: 0.494982
A19: BEAULY CASCADE | B19: Hydro | C19: Actual | D19: Actual | E19: Actual | F19: Actual | G19: Actual | H19: 0.3711674814 | I19: 0.3500937771 | J19: 0.3048720097 | K19: 0.2199367914 | L19: 0.3450720107 | M19: 0.333346
A20: BEINNEUN | B20: Onshore_Wind | C20: Generic | D20: Generic | E20: Partial | F20: Actual | G20: Actual | H20: 0 | I20: 0 | J20: 0.3096225949 | K20: 0.2582137897 | L20: 0.3792017699 | M20: 0.315679
A21: BHLARAIDH | B21: Onshore_Wind | C21: Generic | D21: Generic | E21: Partial | F21: Actual | G21: Actual | H21: 0 | I21: 0 | J21: 0.3343385073 | K21: 0.4632094474 | L21: 0.4019554847 | M21: 0.399834
A22: BLACK LAW | B22: Onshore_Wind | C22: Actual | D22: Actual | E22: Actual | F22: Actual | G22: Actual | H22: 0.267881235 | I22: 0.2690350734 | J22: 0.2346225795 | K22: 0.2121370676 | L22: 0.2636576832 | M22: 0.255387
A23: BLACKCRAIG WINDFARM | B23: Onshore_Wind | C23: Generic | D23: Generic | E23: Generic | F23: Partial | G23: Actual | H23: 0 | I23: 0 | J23: 0 | K23: 0.3602081109 | L23: 0.4036661574 | M23: 0.373511
A24: BLACKLAW EXTENSION | B24: Onshore_Wind | C24: Generic | D24: Partial | E24: Actual | F24: Actual | G24: Actual | H24: 0 | I24: 0.3346351822 | J24: 0.1310950996 | K24: 0.3048702797 | L24: 0.3399159399 | M24: 0.258627
A25: BRIMSDOWN | B25: CCGT_CHP | C25: Actual | D25: Actual | E25: Actual | F25: Actual | G25: Actual | H25: 0.1112289151 | I25: 0.1644630709 | J25: 0.4506145165 | K25: 0.2761683547 | L25: 0.3417569871 | M25: 0.260796
A26: BURBO BANK EXT | B26: Offshore_Wind | C26: Generic | D26: Actual | E26: Actual | F26: Actual | G26: Actual | H26: 0 | I26: 0.1677807095 | J26: 0.2502333329 | K26: 0.4938500184 | L26: 0.4252201538 | M26: 0.389768
A27: CARRAIG GHEAL | B27: Onshore_Wind | C27: Actual | D27: Actual | E27: Actual | F27: Actual | G27: Actual | H27: 0.4892767421 | I27: 0.4562535712 | J27: 0.4042105668 | K27: 0.4553713718 | L27: 0.4574717292 | M27: 0.456366
A28: CARRINGTON | B28: CCGT_CHP | C28: Generic | D28: Partial | E28: Actual | F28: Actual | G28: Actual | H28: 0 | I28: 0.3873179456 | J28: 0.5801146767 | K28: 0.588066414 | L28: 0.6542748915 | M28: 0.607485
A29: CLUNIE | B29: Hydro | C29: Actual | D29: Actual | E29: Actual | F29: Actual | G29: Actual | H29: 0.4324884871 | I29: 0.4797106213 | J29: 0.328297346 | K29: 0.3216991155 | L29: 0.3685003266 | M29: 0.376429
A30: CLYDE (NORTH) | B30: Onshore_Wind | C30: Actual | D30: Actual | E30: Actual | F30: Actual | G30: Actual | H30: 0.3688820034 | I30: 0.4141199558 | J30: 0.2688582747 | K30: 0.3926185008 | L30: 0.4148898909 | M30: 0.391873
A31: CLYDE (SOUTH) | B31: Onshore_Wind | C31: Actual | D31: Actual | E31: Actual | F31: Actual | G31: Actual | H31: 0.2941149857 | I31: 0.3996151087 | J31: 0.3487507516 | K31: 0.3916340571 | L31: 0.3872956727 | M31: 0.375893
A32: CONNAHS QUAY | B32: CCGT_CHP | C32: Actual | D32: Actual | E32: Actual | F32: Actual | G32: Actual | H32: 0.1837388621 | I32: 0.2827133169 | J32: 0.3745881097 | K32: 0.2008457557 | L32: 0.190545972 | M32: 0.224702
A33: CONON CASCADE | B33: Hydro | C33: Actual | D33: Actual | E33: Actual | F33: Actual | G33: Actual | H33: 0.5552866675 | I33: 0.5898601723 | J33: 0.4867821106 | K33: 0.5085472685 | L33: 0.50794055 | M33: 0.523925
A34: CORBY | B34: CCGT_CHP | C34: Actual | D34: Actual | E34: Generic | F34: Partial | G34: Actual | H34: 0.09675525086 | I34: 0.04541109061 | J34: 0 | K34: 0.446502912 | L34: 0.01865010561 | M34: 0.053605
A35: CORRIEGARTH | B35: Onshore_Wind | C35: Generic | D35: Generic | E35: Partial | F35: Actual | G35: Actual | H35: 0 | I35: 0 | J35: 0.2256446216 | K35: 0.4120130832 | L35: 0.4474842052 | M35: 0.361714
A36: CORRIEMOILLIE | B36: Onshore_Wind | C36: Generic | D36: Generic | E36: Partial | F36: Actual | G36: Actual | H36: 0 | I36: 0 | J36: 0.3223155677 | K36: 0.3042104182 | L36: 0.3079849075 | M36: 0.311504
A37: CORYTON | B37: CCGT_CHP | C37: Actual | D37: Actual | E37: Actual | F37: Actual | G37: Actual | H37: 0.1751227783 | I37: 0.2639998973 | J37: 0.6303825888 | K37: 0.1640219702 | L37: 0.2347772957 | M37: 0.224633
A38: COTTAM | B38: Coal | C38: Actual | D38: Actual | E38: Actual | F38: Actual | G38: Actual | H38: 0.5144257197 | I38: 0.3441573804 | J38: 0.1493871088 | K38: 0.2165802451 | L38: 0.1443189106 | M38: 0.236708
A39: COTTAM DEVELOPMENT CENTRE | B39: CCGT_CHP | C39: Actual | D39: Actual | E39: Actual | F39: Actual | G39: Actual | H39: 0.3131320068 | I39: 0.2823822368 | J39: 0.6724822467 | K39: 0.5630065679 | L39: 0.7752697291 | M39: 0.516207
A40: COUR | B40: Onshore_Wind | C40: Generic | D40: Generic | E40: Partial | F40: Actual | G40: Actual | H40: 0 | I40: 0 | J40: 0.3832465161 | K40: 0.5542729814 | L40: 0.5561069718 | M40: 0.497875
A41: COWES | B41: Gas_Oil | C41: Actual | D41: Actual | E41: Actual | F41: Actual | G41: Actual | H41: 0.003135493941 | I41: 0.004912239197 | J41: 0.00531939588 | K41: 0.006941629986 | L41: 0.0003950448467 | M41: 0.004456
A42: CRUACHAN | B42: Pumped_Storage | C42: Actual | D42: Actual | E42: Actual | F42: Actual | G42: Actual | H42: 0.09051556403 | I42: 0.08867279118 | J42: 0.07191420506 | K42: 0.09622517045 | L42: 0.06577818234 | M42: 0.083701
A43: CRYSTAL RIG II | B43: Onshore_Wind | C43: Actual | D43: Actual | E43: Actual | F43: Actual | G43: Actual | H43: 0.4759577237 | I43: 0.4838357364 | J43: 0.4026793644 | K43: 0.525802346 | L43: 0.4872670761 | M43: 0.482354
A44: CRYSTAL RIG III | B44: Onshore_Wind | C44: Generic | D44: Generic | E44: Partial | F44: Actual | G44: Actual | H44: 0 | I44: 0 | J44: 0.3995032478 | K44: 0.5190203246 | L44: 0.4953135795 | M44: 0.471279
A45: DAMHEAD CREEK | B45: CCGT_CHP | C45: Actual | D45: Actual | E45: Actual | F45: Actual | G45: Actual | H45: 0.6746409945 | I45: 0.6489826766 | J45: 0.6811190673 | K45: 0.6351075679 | L45: 0.4524531043 | M45: 0.65291
A46: DEESIDE | B46: CCGT_CHP | C46: Actual | D46: Actual | E46: Actual | F46: Actual | G46: Actual | H46: 0.139018205 | I46: 0.1745794688 | J46: 0.2710900417 | K46: 0.2081640004 | L46: 0 | M46: 0.173921
A47: DERSALLOCH | B47: Onshore_Wind | C47: Generic | D47: Generic | E47: Partial | F47: Actual | G47: Actual | H47: 0 | I47: 0 | J47: 0.3377282768 | K47: 0.3985756287 | L47: 0.3520518199 | M47: 0.362785
A48: DIDCOT B | B48: CCGT_CHP | C48: Actual | D48: Actual | E48: Actual | F48: Actual | G48: Actual | H48: 0.2553449691 | I48: 0.4113887416 | J48: 0.5013584219 | K48: 0.4412337772 | L48: 0.5099376271 | M48: 0.451327
A49: DIDCOT GTS | B49: Gas_Oil | C49: Actual | D49: Actual | E49: Actual | F49: Actual | G49: Actual | H49: 0.002842830273 | I49: 0.004861145298 | J49: 0.0004517142713 | K49: 0.006337200214 | L49: 0.007114901431 | M49: 0.00468
A50: DINORWIG | B50: Pumped_Storage | C50: Actual | D50: Actual | E50: Actual | F50: Actual | G50: Actual | H50: 0.1506499295 | I50: 0.146352903 | J50: 0.1595955617 | K50: 0.1494674855 | L50: 0.1250267226 | M50: 0.148823
A51: DORENELL | B51: Onshore_Wind | C51: Generic | D51: Generic | E51: Generic | F51: Generic | G51: Partial | H51: 0 | I51: 0 | J51: 0 | K51: 0 | L51: 0.3971159411 | M51: 0.370145
A52: DRAX | B52: Coal | C52: Actual | D52: Actual | E52: Actual | F52: Actual | G52: Actual | H52: 0.8221488292 | I52: 0.7620297409 | J52: 0.6227049034 | K52: 0.5588959909 | L52: 0.5095929889 | M52: 0.647877
A53: DUDGEON | B53: Offshore_Wind | C53: Generic | D53: Generic | E53: Partial | F53: Actual | G53: Actual | H53: 0 | I53: 0 | J53: 0.4247912366 | K53: 0.4697816433 | L53: 0.4725246724 | M53: 0.455699
A54: DUNGENESS B | B54: Nuclear | C54: Actual | D54: Actual | E54: Actual | F54: Actual | G54: Actual | H54: 0.5469173524 | I54: 0.7076171275 | J54: 0.7934033017 | K54: 0.6820859926 | L54: 0.3989454312 | M54: 0.64554
A55: DUNLAW EXTENSION | B55: Onshore_Wind | C55: Actual | D55: Actual | E55: Actual | F55: Actual | G55: Actual | H55: 0.300797456 | I55: 0.2912028784 | J55: 0.2655494839 | K55: 0.3108401213 | L55: 0.2846039024 | M55: 0.292201
A56: DUNMAGLASS | B56: Onshore_Wind | C56: Generic | D56: Generic | E56: Partial | F56: Actual | G56: Actual | H56: 0 | I56: 0 | J56: 0.3897128321 | K56: 0.7569358569 | L56: 0.5152279243 | M56: 0.553959
A57: EDINBANE WIND | B57: Onshore_Wind | C57: Actual | D57: Actual | E57: Actual | F57: Actual | G57: Actual | H57: 0.3124578701 | I57: 0.3559368758 | J57: 0.3250092951 | K57: 0.3459291052 | L57: 0.3499376641 | M57: 0.340292
A58: EGGBOROUGH | B58: Coal | C58: Actual | D58: Actual | E58: Partial | F58: Actual | G58: Actual | H58: 0.4574209099 | I58: 0.2701572454 | J58: 0.4002834722 | K58: 0.07171484641 | L58: 0.0001748886528 | M58: 0.266431
A59: ERROCHTY | B59: Hydro | C59: Actual | D59: Actual | E59: Actual | F59: Actual | G59: Actual | H59: 0.2535846667 | I59: 0.2815074681 | J59: 0.161775105 | K59: 0.1360813212 | L59: 0.1794916301 | M59: 0.198284
A60: EWE HILL | B60: Onshore_Wind | C60: Generic | D60: Generic | E60: Partial | F60: Actual | G60: Actual | H60: 0 | I60: 0 | J60: 0.3333144099 | K60: 0.331848958 | L60: 0.3291209109 | M60: 0.331428
A61: FALLAGO | B61: Onshore_Wind | C61: Actual | D61: Actual | E61: Actual | F61: Actual | G61: Actual | H61: 0.4472667071 | I61: 0.5579918871 | J61: 0.4321761867 | K61: 0.494158411 | L61: 0.4792321331 | M61: 0.473552
A62: FARR WINDFARM | B62: Onshore_Wind | C62: Actual | D62: Actual | E62: Actual | F62: Actual | G62: Actual | H62: 0.3857115719 | I62: 0.4099627472 | J62: 0.3417656529 | K62: 0.3830459847 | L62: 0.3956925936 | M62: 0.38815
A63: FASNAKYLE G1 & G3 | B63: Hydro | C63: Actual | D63: Actual | E63: Actual | F63: Actual | G63: Actual | H63: 0.5748344501 | I63: 0.5315730751 | J63: 0.3097683988 | K63: 0.3816732802 | L63: 0.4365537795 | M63: 0.449933
A64: FAWLEY CHP | B64: CCGT_CHP | C64: Actual | D64: Actual | E64: Actual | F64: Actual | G64: Actual | H64: 0.7284838795 | I64: 0.5769783849 | J64: 0.6320062598 | K64: 0.7607927692 | L64: 0.6828994531 | M64: 0.68113
A65: FFESTINIOG | B65: Pumped_Storage | C65: Actual | D65: Actual | E65: Actual | F65: Actual | G65: Actual | H65: 0.04325088629 | I65: 0.03411343478 | J65: 0.05674870402 | K65: 0.04211783898 | L65: 0.02950408168 | M65: 0.039827
A66: FIDDLERS FERRY | B66: Coal | C66: Actual | D66: Actual | E66: Actual | F66: Actual | G66: Actual | H66: 0.4524352001 | I66: 0.2745909916 | J66: 0.08247804108 | K66: 0.1399084214 | L66: 0.05775340057 | M66: 0.165659
A67: FINLARIG | B67: Hydro | C67: Actual | D67: Actual | E67: Actual | F67: Actual | G67: Actual | H67: 0.5940922444 | I67: 0.6513488436 | J67: 0.4964015567 | K67: 0.5264148263 | L67: 0.6413872492 | M67: 0.587298
A68: FOYERS | B68: Pumped_Storage | C68: Actual | D68: Actual | E68: Actual | F68: Actual | G68: Actual | H68: 0.1230476579 | I68: 0.1543232897 | J68: 0.1130461724 | K68: 0.1453331594 | L68: 0.1492781202 | M68: 0.13922
A69: FREASDAIL | B69: Onshore_Wind | C69: Generic | D69: Generic | E69: Partial | F69: Actual | G69: Actual | H69: 0 | I69: 0 | J69: 0.325600001 | K69: 0.3897088373 | L69: 0.4046073316 | M69: 0.373305
A70: GALAWHISTLE | B70: Onshore_Wind | C70: Generic | D70: Generic | E70: Partial | F70: Actual | G70: Actual | H70: 0 | I70: 0 | J70: 0.3497646386 | K70: 0.4244553574 | L70: 0.4744432264 | M70: 0.416221
A71: GALLOPER | B71: Offshore_Wind | C71: Generic | D71: Generic | E71: Generic | F71: Partial | G71: Actual | H71: 0 | I71: 0 | J71: 0 | K71: 0.5475930956 | L71: 0.5380463962 | M71: 0.522948
A72: GARRY CASCADE | B72: Hydro | C72: Actual | D72: Actual | E72: Actual | F72: Actual | G72: Actual | H72: 0.6438275204 | I72: 0.6027718939 | J72: 0.610497804 | K72: 0.6000096401 | L72: 0.5420117129 | M72: 0.604426
A73: GLANDFORD BRIGG | B73: CCGT_CHP | C73: Actual | D73: Actual | E73: Actual | F73: Actual | G73: Actual | H73: 0.005400774783 | I73: 0.01819074281 | J73: 0.02768220562 | K73: 0.01841808381 | L73: 0.01029504059 | M73: 0.015635
A74: GLEN APP | B74: Onshore_Wind | C74: Generic | D74: Generic | E74: Partial | F74: Actual | G74: Actual | H74: 0 | I74: 0 | J74: 0.2513732672 | K74: 0.2483932967 | L74: 0.220869824 | M74: 0.240212
A75: GLENDOE | B75: Hydro | C75: Actual | D75: Actual | E75: Actual | F75: Actual | G75: Actual | H75: 0.3234944282 | I75: 0.348531586 | J75: 0.2386045875 | K75: 0.2401053108 | L75: 0.316075803 | M75: 0.293225
A76: GLENMORISTON | B76: Hydro | C76: Actual | D76: Actual | E76: Actual | F76: Actual | G76: Actual | H76: 0.4874869704 | I76: 0.5069211208 | J76: 0.3467089659 | K76: 0.4439595764 | L76: 0.3782827465 | M76: 0.436576
A77: GORDONBUSH | B77: Onshore_Wind | C77: Actual | D77: Actual | E77: Actual | F77: Actual | G77: Actual | H77: 0.4779807485 | I77: 0.4771606021 | J77: 0.5041257208 | K77: 0.3417619569 | L77: 0.3862265884 | M77: 0.447123
A78: GRAIN | B78: CCGT_CHP | C78: Actual | D78: Actual | E78: Actual | F78: Actual | G78: Actual | H78: 0.440030877 | I78: 0.3978952529 | J78: 0.538226979 | K78: 0.3977553645 | L78: 0.5029276933 | M78: 0.446951
A79: GRANGEMOUTH | B79: CCGT_CHP | C79: Actual | D79: Actual | E79: Actual | F79: Actual | G79: Actual | H79: 0.6261679129 | I79: 0.5982741917 | J79: 0.5145577911 | K79: 0.5897859494 | L79: 0.6356592275 | M79: 0.604743
A80: GREAT YARMOUTH | B80: CCGT_CHP | C80: Actual | D80: Actual | E80: Actual | F80: Actual | G80: Actual | H80: 0.1866331211 | I80: 0.5989568559 | J80: 0.6351203295 | K80: 0.5015206294 | L80: 0.3659105297 | M80: 0.488796
A81: GREATER GABBARD | B81: Offshore_Wind | C81: Actual | D81: Actual | E81: Actual | F81: Actual | G81: Actual | H81: 0.4213270418 | I81: 0.5024678486 | J81: 0.431131513 | K81: 0.4649385098 | L81: 0.399735297 | M81: 0.439132
A82: GRIFFIN WIND | B82: Onshore_Wind | C82: Actual | D82: Actual | E82: Actual | F82: Actual | G82: Actual | H82: 0.3131516292 | I82: 0.3102838967 | J82: 0.2582283141 | K82: 0.2889698681 | L82: 0.2736835908 | M82: 0.290979
A83: GUNFLEET SANDS I | B83: Offshore_Wind | C83: Actual | D83: Actual | E83: Actual | F83: Actual | G83: Actual | H83: 0.4701322658 | I83: 0.5046500838 | J83: 0.4579401502 | K83: 0.4730189619 | L83: 0.3980799544 | M83: 0.46703
A84: GUNFLEET SANDS II | B84: Offshore_Wind | C84: Actual | D84: Actual | E84: Actual | F84: Actual | G84: Actual | H84: 0.4472111569 | I84: 0.4905213083 | J84: 0.4398928867 | K84: 0.4699275453 | L84: 0.3964529056 | M84: 0.452344
A85: GWYNT Y MOR | B85: Offshore_Wind | C85: Actual | D85: Actual | E85: Actual | F85: Actual | G85: Actual | H85: 0.6161851816 | I85: 0.6312761036 | J85: 0.448323336 | K85: 0.5040305053 | L85: 0.4283306612 | M85: 0.522846
A86: HADYARD HILL | B86: Onshore_Wind | C86: Actual | D86: Actual | E86: Actual | F86: Actual | G86: Actual | H86: 0.2776354642 | I86: 0.3665265584 | J86: 0.3143636273 | K86: 0.3403750223 | L86: 0.3127350478 | M86: 0.322491
A87: HARESTANES | B87: Onshore_Wind | C87: Actual | D87: Actual | E87: Actual | F87: Actual | G87: Actual | H87: 0.2863551442 | I87: 0.2780929383 | J87: 0.225463894 | K87: 0.2901245954 | L87: 0.2384728868 | M87: 0.26764
A88: HARTLEPOOL | B88: Nuclear | C88: Actual | D88: Actual | E88: Actual | F88: Actual | G88: Actual | H88: 0.5628033303 | I88: 0.5386664678 | J88: 0.7803904798 | K88: 0.806217743 | L88: 0.8544887029 | M88: 0.716471
A89: HEYSHAM | B89: Nuclear | C89: Actual | D89: Actual | E89: Actual | F89: Actual | G89: Actual | H89: 0.6882520985 | I89: 0.7273439855 | J89: 0.7961687817 | K89: 0.8516168958 | L89: 0.7735118214 | M89: 0.765675
A90: HINKLEY POINT B | B90: Nuclear | C90: Actual | D90: Actual | E90: Actual | F90: Actual | G90: Actual | H90: 0.7014113028 | I90: 0.6764122724 | J90: 0.7122645933 | K90: 0.8346431533 | L90: 0.798462477 | M90: 0.737379
A91: HORNSEA 1B | B91: Offshore_Wind | C91: Generic | D91: Generic | E91: Generic | F91: Generic | G91: Partial | H91: 0 | I91: 0 | J91: 0 | K91: 0 | L91: 0.3949293685 | M91: 0.453779
A92: HUMBER GATEWAY | B92: Offshore_Wind | C92: Partial | D92: Actual | E92: Actual | F92: Actual | G92: Actual | H92: 0.4393425991 | I92: 0.6296306249 | J92: 0.5971951448 | K92: 0.5499129597 | L92: 0.4683510627 | M92: 0.592246
A93: HUNTERSTON | B93: Nuclear | C93: Actual | D93: Actual | E93: Actual | F93: Actual | G93: Actual | H93: 0.7913683046 | I93: 0.8217859127 | J93: 0.8329393387 | K93: 0.7986444707 | L93: 0.2408125421 | M93: 0.803933
A94: IMMINGHAM | B94: CCGT_CHP | C94: Actual | D94: Actual | E94: Actual | F94: Actual | G94: Actual | H94: 0.5683161276 | I94: 0.694686233 | J94: 0.7195503059 | K94: 0.6431751088 | L94: 0.7299801013 | M94: 0.685804
A95: INDIAN QUEENS | B95: Gas_Oil | C95: Actual | D95: Actual | E95: Actual | F95: Actual | G95: Actual | H95: 0.0008756849315 | I95: 0.0007227101223 | J95: 0.0008473744292 | K95: 0.0007402910959 | L95: 0.0002876924331 | M95: 0.00077
A96: J G PEARS | B96: Biomass | C96: Generic | D96: Generic | E96: Generic | F96: Generic | G96: Actual | H96: 0 | I96: 0 | J96: 0 | K96: 0 | L96: 0.3631346944 | M96: 0.386636
A97: KEADBY | B97: CCGT_CHP | C97: Generic | D97: Partial | E97: Actual | F97: Actual | G97: Actual | H97: 0 | I97: 0.3518579167 | J97: 0.2860758714 | K97: 0.3869573655 | L97: 0.4036873449 | M97: 0.358907
A98: KEITH HILL | B98: Onshore_Wind | C98: Generic | D98: Generic | E98: Generic | F98: Partial | G98: Actual | H98: 0 | I98: 0 | J98: 0 | K98: 0.3698579956 | L98: 0.2384928716 | M98: 0.32167
A99: KILBRAUR | B99: Onshore_Wind | C99: Actual | D99: Actual | E99: Actual | F99: Actual | G99: Actual | H99: 0.5435496149 | I99: 0.5038072105 | J99: 0.4653419035 | K99: 0.5675014925 | L99: 0.4976990765 | M99: 0.515019
A100: KILGALLIOCH | B100: Onshore_Wind | C100: Generic | D100: Generic | E100: Partial | F100: Actual | G100: Actual | H100: 0 | I100: 0 | J100: 0.2527392069 | K100: 0.2532540595 | L100: 0.4334417703 | M100: 0.313145
A101: KILLIN CASCADE | B101: Hydro | C101: Actual | D101: Actual | E101: Actual | F101: Actual | G101: Actual | H101: 0.4482051922 | I101: 0.5323483019 | J101: 0.2749618298 | K101: 0.349230949 | L101: 0.4047643836 | M101: 0.400734
A102: KILLINGHOLME (POWERGEN) | B102: Gas_Oil | C102: Generic | D102: Generic | E102: Generic | F102: Partial | G102: Actual | H102: 0 | I102: 0 | J102: 0 | K102: 0.005489388077 | L102: 0.006139390601 | M102: 0.005188
A103: KINGS LYNN A | B103: CCGT_CHP | C103: Actual | D103: Generic | E103: Generic | F103: Generic | G103: Actual | H103: 1.153083345e-07 | I103: 0 | J103: 0 | K103: 0 | L103: 0.004253686313 | M103: 0.171241
A104: KYPE MUIR | B104: Onshore_Wind | C104: Generic | D104: Generic | E104: Generic | F104: Generic | G104: Partial | H104: 0 | I104: 0 | J104: 0 | K104: 0 | L104: 0.2777735654 | M104: 0.330365
A105: LANGAGE | B105: CCGT_CHP | C105: Actual | D105: Actual | E105: Actual | F105: Actual | G105: Actual | H105: 0.3486289992 | I105: 0.1653103923 | J105: 0.4454126246 | K105: 0.4233680119 | L105: 0.2455906111 | M105: 0.339196
A106: LINCS WIND FARM | B106: Offshore_Wind | C106: Actual | D106: Actual | E106: Actual | F106: Actual | G106: Actual | H106: 0.4381783858 | I106: 0.4913064248 | J106: 0.4451924002 | K106: 0.5109114039 | L106: 0.4674115484 | M106: 0.46797
A107: LITTLE BARFORD | B107: CCGT_CHP | C107: Actual | D107: Actual | E107: Actual | F107: Actual | G107: Actual | H107: 0.4966440439 | I107: 0.3998289362 | J107: 0.6485966947 | K107: 0.6630672698 | L107: 0.6323418851 | M107: 0.592528
A108: LOCHLUICHART | B108: Onshore_Wind | C108: Actual | D108: Actual | E108: Actual | F108: Actual | G108: Actual | H108: 0.2021030888 | I108: 0.2926628108 | J108: 0.316896893 | K108: 0.343321941 | L108: 0.3284750612 | M108: 0.312678
A109: LONDON ARRAY | B109: Offshore_Wind | C109: Actual | D109: Actual | E109: Actual | F109: Actual | G109: Actual | H109: 0.6408802365 | I109: 0.6686820334 | J109: 0.5362454766 | K109: 0.5055146403 | L109: 0.3685387249 | M109: 0.56088
A110: LYNEMOUTH | B110: Biomass | C110: Generic | D110: Generic | E110: Generic | F110: Actual | G110: Actual | H110: 0 | I110: 0 | J110: 0 | K110: 0.01078322725 | L110: 0.8564949241 | M110: 0.421888
A111: MARCHWOOD | B111: CCGT_CHP | C111: Actual | D111: Actual | E111: Actual | F111: Actual | G111: Actual | H111: 0.6640208574 | I111: 0.550879364 | J111: 0.7542478217 | K111: 0.6736924249 | L111: 0.7227368645 | M111: 0.686817
A112: MARK HILL | B112: Onshore_Wind | C112: Actual | D112: Actual | E112: Actual | F112: Actual | G112: Actual | H112: 0.2679424679 | I112: 0.3402268447 | J112: 0.2196529788 | K112: 0.3109145666 | L112: 0.2866664728 | M112: 0.288508
A113: MEDWAY | B113: CCGT_CHP | C113: Actual | D113: Actual | E113: Actual | F113: Actual | G113: Actual | H113: 0.2809622568 | I113: 0.341799498 | J113: 0.3515047572 | K113: 0.3672610408 | L113: 0.2742897571 | M113: 0.324756
A114: MIDDLE MUIR | B114: Onshore_Wind | C114: Generic | D114: Generic | E114: Generic | F114: Generic | G114: Partial | H114: 0 | I114: 0 | J114: 0 | K114: 0 | L114: 0.2936689551 | M114: 0.335663
A115: MILLENNIUM | B115: Onshore_Wind | C115: Actual | D115: Actual | E115: Actual | F115: Actual | G115: Actual | H115: 0.5326363716 | I115: 0.4840375683 | J115: 0.4497635054 | K115: 0.5364875659 | L115: 0.5412155076 | M115: 0.517721
A116: MINNYGAP | B116: Onshore_Wind | C116: Generic | D116: Generic | E116: Generic | F116: Actual | G116: Actual | H116: 0 | I116: 0 | J116: 0 | K116: 0.3099619726 | L116: 0.3242787078 | M116: 0.3303
A117: NANT | B117: Hydro | C117: Actual | D117: Actual | E117: Actual | F117: Actual | G117: Actual | H117: 0.3640404718 | I117: 0.3737878567 | J117: 0.306350137 | K117: 0.3490257534 | L117: 0.3402814003 | M117: 0.351116
A118: ORMONDE | B118: Offshore_Wind | C118: Actual | D118: Actual | E118: Actual | F118: Actual | G118: Actual | H118: 0.4287111339 | I118: 0.4719858417 | J118: 0.4121875723 | K118: 0.377161583 | L118: 0.4086464041 | M118: 0.416515
A119: PEMBROKE | B119: CCGT_CHP | C119: Actual | D119: Actual | E119: Actual | F119: Actual | G119: Actual | H119: 0.6753460103 | I119: 0.6455962688 | J119: 0.7764784209 | K119: 0.7028659689 | L119: 0.7052629617 | M119: 0.694492
A120: PEN Y CYMOEDD | B120: Onshore_Wind | C120: Generic | D120: Generic | E120: Partial | F120: Actual | G120: Actual | H120: 0 | I120: 0 | J120: 0.2694464754 | K120: 0.360947784 | L120: 0.3320091524 | M120: 0.320801
A121: PETERBOROUGH | B121: CCGT_CHP | C121: Actual | D121: Partial | E121: Actual | F121: Actual | G121: Actual | H121: 0.01092922095 | I121: 0.04103173925 | J121: 0.01791374988 | K121: 0.004348863107 | L121: 0.004135843351 | M121: 0.011064
A122: PETERHEAD | B122: CCGT_CHP | C122: Actual | D122: Actual | E122: Actual | F122: Actual | G122: Actual | H122: 0.004857751998 | I122: 0.233812693 | J122: 0.4222919452 | K122: 0.6578080108 | L122: 0.6157468605 | M122: 0.42395
A123: POGBIE | B123: Onshore_Wind | C123: Generic | D123: Generic | E123: Generic | F123: Generic | G123: Partial | H123: 0 | I123: 0 | J123: 0 | K123: 0 | L123: 0.2907688241 | M123: 0.334696
A124: RACE BANK | B124: Offshore_Wind | C124: Generic | D124: Generic | E124: Partial | F124: Actual | G124: Actual | H124: 0 | I124: 0 | J124: 0.4530621447 | K124: 0.3819776761 | L124: 0.471319765 | M124: 0.435453
A125: RAMPION | B125: Offshore_Wind | C125: Generic | D125: Generic | E125: Generic | F125: Partial | G125: Actual | H125: 0 | I125: 0 | J125: 0 | K125: 0.4098847892 | L125: 0.3548914643 | M125: 0.415993
A126: RATCLIFFE-ON-SOAR | B126: Coal | C126: Actual | D126: Actual | E126: Actual | F126: Actual | G126: Actual | H126: 0.5617667781 | I126: 0.1968139855 | J126: 0.1546565575 | K126: 0.1937798647 | L126: 0.1685355984 | M126: 0.186376
A127: ROBIN RIGG EAST | B127: Offshore_Wind | C127: Actual | D127: Actual | E127: Actual | F127: Actual | G127: Actual | H127: 0.5532089029 | I127: 0.5197003309 | J127: 0.5050960269 | K127: 0.4255988076 | L127: 0.3442293342 | M127: 0.483465
A128: ROBIN RIGG WEST | B128: Offshore_Wind | C128: Actual | D128: Actual | E128: Actual | F128: Actual | G128: Actual | H128: 0.5341496352 | I128: 0.5608813616 | J128: 0.5153830529 | K128: 0.4739908179 | L128: 0.4094944138 | M128: 0.507841
A129: ROCKSAVAGE | B129: CCGT_CHP | C129: Actual | D129: Actual | E129: Actual | F129: Actual | G129: Actual | H129: 0.04425174756 | I129: 0.1980613207 | J129: 0.5868063204 | K129: 0.2981220769 | L129: 0.3562139798 | M129: 0.284132
A130: RYE HOUSE | B130: CCGT_CHP | C130: Actual | D130: Actual | E130: Actual | F130: Actual | G130: Actual | H130: 0.05370102181 | I130: 0.07790559998 | J130: 0.156538393 | K130: 0.1347358566 | L130: 0.08639273302 | M130: 0.099678
A131: SALTEND | B131: CCGT_CHP | C131: Actual | D131: Actual | E131: Actual | F131: Actual | G131: Actual | H131: 0.6795175073 | I131: 0.5562280896 | J131: 0.7740194296 | K131: 0.7015958414 | L131: 0.7132658294 | M131: 0.698126
A132: SANQUHAR | B132: Onshore_Wind | C132: Generic | D132: Generic | E132: Generic | F132: Partial | G132: Actual | H132: 0 | I132: 0 | J132: 0 | K132: 0.3520978648 | L132: 0.5098438889 | M132: 0.406201
A133: SEABANK | B133: CCGT_CHP | C133: Actual | D133: Actual | E133: Actual | F133: Actual | G133: Actual | H133: 0.2569560281 | I133: 0.2721363181 | J133: 0.4168152491 | K133: 0.5546059184 | L133: 0.3267527654 | M133: 0.338568
A134: SELLAFIELD | B134: CCGT_CHP | C134: Actual | D134: Actual | E134: Actual | F134: Actual | G134: Actual | H134: 0.1897190831 | I134: 0.2867896616 | J134: 0.1985875431 | K134: 0.1360071262 | L134: 0.08832046988 | M134: 0.174771
A135: SEVERN POWER | B135: CCGT_CHP | C135: Actual | D135: Actual | E135: Actual | F135: Actual | G135: Actual | H135: 0.2463540706 | I135: 0.1832264994 | J135: 0.644245872 | K135: 0.5569199537 | L135: 0.3956155619 | M135: 0.39963
A136: SHERINGHAM SHOAL | B136: Offshore_Wind | C136: Actual | D136: Actual | E136: Actual | F136: Actual | G136: Actual | H136: 0.4622855965 | I136: 0.5361838032 | J136: 0.4697154055 | K136: 0.5430714757 | L136: 0.5075940016 | M136: 0.504498
A137: SHOREHAM | B137: CCGT_CHP | C137: Actual | D137: Actual | E137: Actual | F137: Actual | G137: Actual | H137: 0.1022390237 | I137: 0.4895135273 | J137: 0.6898628895 | K137: 0.6429941504 | L137: 0.1209826655 | M137: 0.41783
A138: SIZEWELL B | B138: Nuclear | C138: Actual | D138: Actual | E138: Actual | F138: Actual | G138: Actual | H138: 0.8479240813 | I138: 0.9878256433 | J138: 0.8163585306 | K138: 0.733708261 | L138: 0.9801799261 | M138: 0.881488
A139: SLOY G2 & G3 | B139: Hydro | C139: Actual | D139: Actual | E139: Actual | F139: Actual | G139: Actual | H139: 0.1559413385 | I139: 0.1394388661 | J139: 0.08178171946 | K139: 0.1203030679 | L139: 0.09824600029 | M139: 0.119329
A140: SOUTH HUMBER BANK | B140: CCGT_CHP | C140: Actual | D140: Actual | E140: Actual | F140: Actual | G140: Actual | H140: 0.3446725632 | I140: 0.486753363 | J140: 0.5534194309 | K140: 0.346174226 | L140: 0.3105690311 | M140: 0.392533
A141: SPALDING | B141: CCGT_CHP | C141: Actual | D141: Actual | E141: Actual | F141: Actual | G141: Actual | H141: 0.3930919949 | I141: 0.4794074529 | J141: 0.6097475506 | K141: 0.529683071 | L141: 0.3818500136 | M141: 0.467394
A142: STAYTHORPE | B142: CCGT_CHP | C142: Actual | D142: Actual | E142: Actual | F142: Actual | G142: Actual | H142: 0.5661480523 | I142: 0.6944216016 | J142: 0.657790938 | K142: 0.5207014736 | L142: 0.6032327139 | M142: 0.609057
A143: STRATHY NORTH & SOUTH | B143: Onshore_Wind | C143: Generic | D143: Partial | E143: Actual | F143: Actual | G143: Actual | H143: 0 | I143: 0.4963399751 | J143: 0.3619872362 | K143: 0.4023128394 | L143: 0.3407107898 | M143: 0.368337
A144: STRONELAIRG | B144: Onshore_Wind | C144: Generic | D144: Generic | E144: Generic | F144: Partial | G144: Actual | H144: 0 | I144: 0 | J144: 0 | K144: 0.3753658579 | L144: 0.4846377806 | M144: 0.405555
A145: SUTTON BRIDGE | B145: CCGT_CHP | C145: Actual | D145: Actual | E145: Actual | F145: Actual | G145: Actual | H145: 0.1720249079 | I145: 0.1319992405 | J145: 0.3801840254 | K145: 0.2918776639 | L145: 0.2235597744 | M145: 0.229154
A146: TAYLORS LANE | B146: Gas_Oil | C146: Actual | D146: Actual | E146: Actual | F146: Actual | G146: Actual | H146: 0.0006404823059 | I146: 0.001707707195 | J146: 0.00804706843 | K146: 0.01171229417 | L146: 0.001132937754 | M146: 0.003629
A147: THANET | B147: Offshore_Wind | C147: Actual | D147: Actual | E147: Actual | F147: Actual | G147: Actual | H147: 0.3559347333 | I147: 0.4134335849 | J147: 0.3371323577 | K147: 0.3850691967 | L147: 0.358373223 | M147: 0.366459
A148: TODDLEBURN | B148: Onshore_Wind | C148: Actual | D148: Actual | E148: Actual | F148: Actual | G148: Actual | H148: 0.3372111252 | I148: 0.3508232483 | J148: 0.3134354196 | K148: 0.3801581464 | L148: 0.3470617431 | M148: 0.345032
A149: TORNESS | B149: Nuclear | C149: Actual | D149: Actual | E149: Actual | F149: Actual | G149: Actual | H149: 0.9149454321 | I149: 0.8577251349 | J149: 0.9799422936 | K149: 0.8644130342 | L149: 0.8546315876 | M149: 0.879028
A150: USKMOUTH | B150: Coal | C150: Partial | D150: Actual | E150: Actual | F150: Actual | G150: Actual | H150: 0.4694284272 | I150: 0.2551839866 | J150: 0.2433043505 | K150: 0.0009996773873 | L150: 0.0001077784395 | M150: 0.166496
A151: WALNEY 4 | B151: Offshore_Wind | C151: Generic | D151: Generic | E151: Generic | F151: Partial | G151: Actual | H151: 0 | I151: 0 | J151: 0 | K151: 0.4520332375 | L151: 0.5033378414 | M151: 0.479525
A152: WALNEY I | B152: Offshore_Wind | C152: Actual | D152: Actual | E152: Actual | F152: Actual | G152: Actual | H152: 0.5205550115 | I152: 0.5075348054 | J152: 0.4746168072 | K152: 0.5594716544 | L152: 0.4161497767 | M152: 0.500902
A153: WALNEY II | B153: Offshore_Wind | C153: Actual | D153: Actual | E153: Actual | F153: Actual | G153: Actual | H153: 0.5823549218 | I153: 0.3579876161 | J153: 0.5497270774 | K153: 0.628289775 | L153: 0.4872917363 | M153: 0.539791
A154: WALNEY III | B154: Offshore_Wind | C154: Generic | D154: Generic | E154: Generic | F154: Partial | G154: Actual | H154: 0 | I154: 0 | J154: 0 | K154: 0.5017622152 | L154: 0.5077157403 | M154: 0.497561
A155: WEST BURTON | B155: Coal | C155: Actual | D155: Actual | E155: Actual | F155: Actual | G155: Actual | H155: 0.6153640203 | I155: 0.3273250677 | J155: 0.1010710748 | K155: 0.118198605 | L155: 0.0636898426 | M155: 0.182198
A156: WEST BURTON B | B156: CCGT_CHP | C156: Actual | D156: Actual | E156: Actual | F156: Actual | G156: Actual | H156: 0.4684208601 | I156: 0.5934768525 | J156: 0.5428779464 | K156: 0.6324200128 | L156: 0.6280673937 | M156: 0.588141
A157: WEST OF DUDDON SANDS | B157: Offshore_Wind | C157: Actual | D157: Actual | E157: Actual | F157: Actual | G157: Actual | H157: 0.4005057185 | I157: 0.4875397471 | J157: 0.4876906805 | K157: 0.5540340607 | L157: 0.4892089483 | M157: 0.488146
A158: WESTERMOST ROUGH | B158: Offshore_Wind | C158: Partial | D158: Actual | E158: Actual | F158: Actual | G158: Actual | H158: 0.2628995643 | I158: 0.5480139128 | J158: 0.5810610725 | K158: 0.6347402266 | L158: 0.5255010979 | M158: 0.587938
A159: WHITELEE | B159: Onshore_Wind | C159: Actual | D159: Actual | E159: Actual | F159: Actual | G159: Actual | H159: 0.2981046467 | I159: 0.3187733177 | J159: 0.2728928378 | K159: 0.2963357583 | L159: 0.3072960936 | M159: 0.300579
A160: WHITELEE EXTENSION | B160: Onshore_Wind | C160: Actual | D160: Actual | E160: Actual | F160: Actual | G160: Actual | H160: 0.2777866594 | I160: 0.2676548491 | J160: 0.2352527425 | K160: 0.2516644983 | L160: 0.2666474154 | M160: 0.261989
A161: WHITESIDE HILL | B161: Onshore_Wind | C161: Generic | D161: Generic | E161: Generic | F161: Partial | G161: Actual | H161: 0 | I161: 0 | J161: 0 | K161: 0.3837042871 | L161: 0.5508473871 | M161: 0.430404
A162: WILTON | B162: CCGT_CHP | C162: Actual | D162: Actual | E162: Actual | F162: Actual | G162: Actual | H162: 0.2158667001 | I162: 0.1613791697 | J162: 0.144129886 | K162: 0.1557497612 | L162: 0.2145145528 | M162: 0.177214
A163: WINDY STANDARD II | B163: Onshore_Wind | C163: Generic | D163: Generic | E163: Generic | F163: Partial | G163: Actual | H163: 0 | I163: 0 | J163: 0 | K163: 0.4329813488 | L163: 0.4945093626 | M163: 0.42805
